Workbook

Sheet Industry Employment
A1: Past and Future Employment Levels and Growth - National Skills Commission Seasonally Adjusted Data and Projections
A2: Select chart type: | G2: Select industry: | P2: ="National Skills Commission Seasonally Adjusted data to "&TEXT('Trend Data IN'!T1,"mmmm yyyy") -> National Skills Commission Seasonally Adjusted data to May 2020
P3: ="National Skills Commission Employment Projections, five years to "&MID('Projections IN'!E2,42,255) -> National Skills Commission Employment Projections, five years to May 2024

Sheet Calc (hidden)
A1: 1 digit List Fill Range: | C1: 2 digit List Fill Ranges: | F1: 1 to 3 digit List Fill Ranges: | I1: 2 to 3 digit List Fill Ranges:
A2: ALL INDUSTRIES | C2: Agriculture, Forestry and Fishing | D2: <Whole industry> | F2: Agriculture, Forestry and Fishing | G2: <Whole industry> | I2: Agriculture | J2: <Whole industry>
A3: Agriculture, Forestry and Fishing | D3: Agriculture | G3: Agriculture, nfd | J3: Agriculture, nfd
A4: Mining | D4: Aquaculture | G4: Nursery and Floriculture Production | J4: Nursery and Floriculture Production
A5: Manufacturing | D5: Forestry and Logging | G5: Mushroom and Vegetable Growing | J5: Mushroom and Vegetable Growing
A6: Electricity, Gas, Water and Waste Services | D6: Fishing, Hunting and Trapping | G6: Fruit and Tree Nut Growing | J6: Fruit and Tree Nut Growing
A7: Construction | D7: Agriculture, Forestry and Fishing Support Services | G7: Sheep, Beef Cattle and Grain Farming | J7: Sheep, Beef Cattle and Grain Farming
A8: Wholesale Trade | D8: Agriculture, Forestry and Fishing, nfd | G8: Other Crop Growing | J8: Other Crop Growing
A9: Retail Trade | C9: Mining | D9: <Whole industry> | G9: Dairy Cattle Farming | J9: Dairy Cattle Farming
A10: Accommodation and Food Services | D10: Coal Mining | G10: Poultry Farming | J10: Poultry Farming
A11: Transport, Postal and Warehousing | D11: Oil and Gas Extraction | G11: Deer Farming | J11: Deer Farming
A12: Information Media and Telecommunications | D12: Metal Ore Mining | G12: Other Livestock Farming | J12: Other Livestock Farming
A13: Financial and Insurance Services | D13: Non-Metallic Mineral Mining and Quarrying | G13: Aquaculture | I13: Aquaculture | J13: <One subsector only - no selection available>
A14: Rental, Hiring and Real Estate Services | D14: Exploration and Other Mining Support Services | G14: Forestry and Logging | I14: Forestry and Logging | J14: <One subsector only - no selection available>
A15: Professional, Scientific and Technical Services | D15: Mining, nfd | G15: Fishing, Hunting and Trapping, nfd | I15: Fishing, Hunting and Trapping | J15: <Whole industry>
A16: Administrative and Support Services | C16: Manufacturing | D16: <Whole industry> | G16: Fishing | J16: Fishing, Hunting and Trapping, nfd
A17: Public Administration and Safety | D17: Food Product Manufacturing | G17: Hunting and Trapping | J17: Fishing
A18: Education and Training | D18: Beverage and Tobacco Product Manufacturing | G18: Agriculture, Forestry and Fishing Support Services, nfd | J18: Hunting and Trapping
A19: Health Care and Social Assistance | D19: Textile, Leather, Clothing and Footwear Manufacturing | G19: Forestry Support Services | I19: Agriculture, Forestry and Fishing Support Services | J19: <Whole industry>
A20: Arts and Recreation Services | D20: Wood Product Manufacturing | G20: Agriculture and Fishing Support Services | J20: Agriculture, Forestry and Fishing Support Services, nfd
A21: Other Services | D21: Pulp, Paper and Converted Paper Product Manufacturing | G21: Agriculture, Forestry and Fishing, nfd | J21: Forestry Support Services
D22: Printing (including the Reproduction of Recorded Media) | F22: Mining | G22: <Whole industry> | J22: Agriculture and Fishing Support Services
D23: Petroleum and Coal Product Manufacturing | G23: Coal Mining | I23: Agriculture, Forestry and Fishing, nfd | J23: <One subsector only - no selection available>
D24: Basic Chemical and Chemical Product Manufacturing | G24: Oil and Gas Extraction | I24: Coal Mining | J24: <One subsector only - no selection available>
A25: Selected Industry: | D25: Polymer Product and Rubber Product Manufacturing | G25: Metal Ore Mining | I25: Oil and Gas Extraction | J25: <One subsector only - no selection available>
A26: ALL INDUSTRIES | D26: Non-Metallic Mineral Product Manufacturing | G26: Non-Metallic Mineral Mining and Quarrying, nfd | I26: Metal Ore Mining | J26: <One subsector only - no selection available>
D27: Primary Metal and Metal Product Manufacturing | G27: Construction Material Mining | I27: Non-Metallic Mineral Mining and Quarrying | J27: <Whole industry>
D28: Fabricated Metal Product Manufacturing | G28: Other Non-Metallic Mineral Mining and Quarrying | J28: Non-Metallic Mineral Mining and Quarrying, nfd
A29: Projection date: | B29: DEEWR Trend Data date: | D29: Transport Equipment Manufacturing | G29: Exploration and Other Mining Support Services, nfd | J29: Construction Material Mining
A30: =DATEVALUE(MID('Projections IN'!E2,42,255)) -> 2024-05-01 | B30: ='Trend Data IN'!T1 -> 2020-05-01 | D30: Machinery and Equipment Manufacturing | G30: Exploration | J30: Other Non-Metallic Mineral Mining and Quarrying
D31: Furniture and Other Manufacturing | G31: Other Mining Support Services | I31: Exploration and Other Mining Support Services | J31: <Whole industry>
D32: Manufacturing, nfd | G32: Mining, nfd | J32: Exploration and Other Mining Support Services, nfd
A33: Employment levels chart title: | C33: Electricity, Gas, Water and Waste Services | D33: <Whole industry> | F33: Manufacturing | G33: <Whole industry> | J33: Exploration
A34: ="Past and future employment levels - "&Selected_Industry -> Past and future employment levels - ALL INDUSTRIES | D34: Electricity Supply | G34: Food Product Manufacturing, nfd | J34: Other Mining Support Services
D35: Gas Supply | G35: Meat and Meat Product Manufacturing | I35: Mining, nfd | J35: <One subsector only - no selection available>
D36: Water Supply, Sewerage and Drainage Services | G36: Seafood Processing | I36: Food Product Manufacturing | J36: <Whole industry>
D37: Waste Collection, Treatment and Disposal Services | G37: Dairy Product Manufacturing | J37: Food Product Manufacturing, nfd
D38: Electricity, Gas, Water and Waste Services, nfd | G38: Fruit and Vegetable Processing | J38: Meat and Meat Product Manufacturing
C39: Construction | D39: <Whole industry> | G39: Oil and Fat Manufacturing | J39: Seafood Processing
D40: Building Construction | G40: Grain Mill and Cereal Product Manufacturing | J40: Dairy Product Manufacturing
D41: Heavy and Civil Engineering Construction | G41: Bakery Product Manufacturing | J41: Fruit and Vegetable Processing
D42: Construction Services | G42: Sugar and Confectionery Manufacturing | J42: Oil and Fat Manufacturing
D43: Construction, nfd | G43: Other Food Product Manufacturing | J43: Grain Mill and Cereal Product Manufacturing
C44: Wholesale Trade | D44: <Whole industry> | G44: Beverage and Tobacco Product Manufacturing, nfd | J44: Bakery Product Manufacturing
D45: Basic Material Wholesaling | G45: Beverage Manufacturing | J45: Sugar and Confectionery Manufacturing
D46: Machinery and Equipment Wholesaling | G46: Cigarette and Tobacco Product Manufacturing | J46: Other Food Product Manufacturing
D47: Motor Vehicle and Motor Vehicle Parts Wholesaling | G47: Textile, Leather, Clothing and Footwear Manufacturing, nfd | I47: Beverage and Tobacco Product Manufacturing | J47: <Whole industry>
D48: Grocery, Liquor and Tobacco Product Wholesaling | G48: Textile Manufacturing | J48: Beverage and Tobacco Product Manufacturing, nfd
D49: Other Goods Wholesaling | G49: Leather Tanning, Fur Dressing and Leather Product Manufacturing | J49: Beverage Manufacturing
D50: Commission-Based Wholesaling | G50: Textile Product Manufacturing | J50: Cigarette and Tobacco Product Manufacturing
D51: Wholesale Trade, nfd | G51: Knitted Product Manufacturing | I51: Textile, Leather, Clothing and Footwear Manufacturing | J51: <Whole industry>
C52: Retail Trade | D52: <Whole industry> | G52: Clothing and Footwear Manufacturing | J52: Textile, Leather, Clothing and Footwear Manufacturing, nfd
D53: Motor Vehicle and Motor Vehicle Parts Retailing | G53: Wood Product Manufacturing, nfd | J53: Textile Manufacturing
D54: Fuel Retailing | G54: Log Sawmilling and Timber Dressing | J54: Leather Tanning, Fur Dressing and Leather Product Manufacturing
D55: Food Retailing | G55: Other Wood Product Manufacturing | J55: Textile Product Manufacturing
D56: Other Store-Based Retailing | G56: Pulp, Paper and Converted Paper Product Manufacturing, nfd | J56: Knitted Product Manufacturing
D57: Non-Store Retailing and Retail Commission-Based Buying and/or Selling | G57: Pulp, Paper and Paperboard Manufacturing | J57: Clothing and Footwear Manufacturing
D58: Retail Trade, nfd | G58: Converted Paper Product Manufacturing | I58: Wood Product Manufacturing | J58: <Whole industry>
C59: Accommodation and Food Services | D59: <Whole industry> | G59: Printing (including the Reproduction of Recorded Media), nfd | J59: Wood Product Manufacturing, nfd
D60: Accommodation | G60: Printing and Printing Support Services | J60: Log Sawmilling and Timber Dressing
D61: Food and Beverage Services | G61: Reproduction of Recorded Media | J61: Other Wood Product Manufacturing
D62: Accommodation and Food Services, nfd | G62: Petroleum and Coal Product Manufacturing | I62: Pulp, Paper and Converted Paper Product Manufacturing | J62: <Whole industry>
C63: Transport, Postal and Warehousing | D63: <Whole industry> | G63: Basic Chemical and Chemical Product Manufacturing, nfd | J63: Pulp, Paper and Converted Paper Product Manufacturing, nfd
D64: Road Transport | G64: Basic Chemical Manufacturing | J64: Pulp, Paper and Paperboard Manufacturing
D65: Rail Transport | G65: Basic Polymer Manufacturing | J65: Converted Paper Product Manufacturing
D66: Water Transport | G66: Fertiliser and Pesticide Manufacturing | I66: Printing (including the Reproduction of Recorded Media) | J66: <Whole industry>
D67: Air and Space Transport | G67: Pharmaceutical and Medicinal Product Manufacturing | J67: Printing (including the Reproduction of Recorded Media), nfd
D68: Other Transport | G68: Cleaning Compound and Toiletry Preparation Manufacturing | J68: Printing and Printing Support Services
D69: Postal and Courier Pick-up and Delivery Services | G69: Other Basic Chemical Product Manufacturing | J69: Reproduction of Recorded Media
D70: Transport Support Services | G70: Polymer Product and Rubber Product Manufacturing, nfd | I70: Petroleum and Coal Product Manufacturing | J70: <One subsector only - no selection available>
D71: Warehousing and Storage Services | G71: Polymer Product Manufacturing | I71: Basic Chemical and Chemical Product Manufacturing | J71: <Whole industry>
D72: Transport, Postal and Warehousing, nfd | G72: Natural Rubber Product Manufacturing | J72: Basic Chemical and Chemical Product Manufacturing, nfd
C73: Information Media and Telecommunications | D73: <Whole industry> | G73: Non-Metallic Mineral Product Manufacturing, nfd | J73: Basic Chemical Manufacturing
D74: Publishing (except Internet and Music Publishing) | G74: Glass and Glass Product Manufacturing | J74: Basic Polymer Manufacturing
D75: Motion Picture and Sound Recording Activities | G75: Ceramic Product Manufacturing | J75: Fertiliser and Pesticide Manufacturing
D76: Broadcasting (except Internet) | G76: Cement, Lime, Plaster and Concrete Product Manufacturing | J76: Pharmaceutical and Medicinal Product Manufacturing
D77: Internet Publishing and Broadcasting | G77: Other Non-Metallic Mineral Product Manufacturing | J77: Cleaning Compound and Toiletry Preparation Manufacturing
D78: Telecommunications Services | G78: Primary Metal and Metal Product Manufacturing, nfd | J78: Other Basic Chemical Product Manufacturing
D79: Internet Service Providers, Web Search Portals and Data Processing Services | G79: Basic Ferrous Metal Manufacturing | I79: Polymer Product and Rubber Product Manufacturing | J79: <Whole industry>
D80: Library and Other Information Services | G80: Basic Ferrous Metal Product Manufacturing | J80: Polymer Product and Rubber Product Manufacturing, nfd
D81: Information Media and Telecommunications, nfd | G81: Basic Non-Ferrous Metal Manufacturing | J81: Polymer Product Manufacturing
C82: Financial and Insurance Services | D82: <Whole industry> | G82: Basic Non-Ferrous Metal Product Manufacturing | J82: Natural Rubber Product Manufacturing
D83: Finance | G83: Fabricated Metal Product Manufacturing, nfd | I83: Non-Metallic Mineral Product Manufacturing | J83: <Whole industry>
D84: Insurance and Superannuation Funds | G84: Iron and Steel Forging | J84: Non-Metallic Mineral Product Manufacturing, nfd
D85: Auxiliary Finance and Insurance Services | G85: Structural Metal Product Manufacturing | J85: Glass and Glass Product Manufacturing
D86: Financial and Insurance Services, nfd | G86: Metal Container Manufacturing | J86: Ceramic Product Manufacturing
C87: Rental, Hiring and Real Estate Services | D87: <Whole industry> | G87: Sheet Metal Product Manufacturing (except Metal Structural and Container Products) | J87: Cement, Lime, Plaster and Concrete Product Manufacturing
D88: Rental and Hiring Services (except Real Estate) | G88: Other Fabricated Metal Product Manufacturing | J88: Other Non-Metallic Mineral Product Manufacturing
D89: Property Operators and Real Estate Services | G89: Transport Equipment Manufacturing, nfd | I89: Primary Metal and Metal Product Manufacturing | J89: <Whole industry>
D90: Rental, Hiring and Real Estate Services, nfd | G90: Motor Vehicle and Motor Vehicle Part Manufacturing | J90: Primary Metal and Metal Product Manufacturing, nfd
C91: Professional, Scientific and Technical Services | D91: <Whole industry> | G91: Other Transport Equipment Manufacturing | J91: Basic Ferrous Metal Manufacturing
D92: Professional, Scientific and Technical Services (Except Computer System Design and Related Services) | G92: Machinery and Equipment Manufacturing, nfd | J92: Basic Ferrous Metal Product Manufacturing
D93: Computer System Design and Related Services | G93: Professional and Scientific Equipment Manufacturing | J93: Basic Non-Ferrous Metal Manufacturing
D94: Professional, Scientific and Technical Services, nfd | G94: Computer and Electronic Equipment Manufacturing | J94: Basic Non-Ferrous Metal Product Manufacturing
C95: Administrative and Support Services | D95: <Whole industry> | G95: Electrical Equipment Manufacturing | I95: Fabricated Metal Product Manufacturing | J95: <Whole industry>
D96: Administrative Services | G96: Domestic Appliance Manufacturing | J96: Fabricated Metal Product Manufacturing, nfd
D97: Building Cleaning, Pest Control and Other Support Services | G97: Pump, Compressor, Heating and Ventilation Equipment Manufacturing | J97: Iron and Steel Forging
D98: Administrative and Support Services, nfd | G98: Specialised Machinery and Equipment Manufacturing | J98: Structural Metal Product Manufacturing
C99: Public Administration and Safety | D99: <Whole industry> | G99: Other Machinery and Equipment Manufacturing | J99: Metal Container Manufacturing
D100: Public Administration | G100: Furniture and Other Manufacturing, nfd | J100: Sheet Metal Product Manufacturing (except Metal Structural and Container Products)
D101: Defence | G101: Furniture Manufacturing | J101: Other Fabricated Metal Product Manufacturing
D102: Public Order, Safety and Regulatory Services | G102: Other Manufacturing | I102: Transport Equipment Manufacturing | J102: <Whole industry>
D103: Public Administration and Safety, nfd | G103: Manufacturing, nfd | J103: Transport Equipment Manufacturing, nfd
C104: Education and Training | D104: <Whole industry> | F104: Electricity, Gas, Water and Waste Services | G104: <Whole industry> | J104: Motor Vehicle and Motor Vehicle Part Manufacturing
D105: Preschool and School Education | G105: Electricity Supply, nfd | J105: Other Transport Equipment Manufacturing
D106: Tertiary Education | G106: Electricity Generation | I106: Machinery and Equipment Manufacturing | J106: <Whole industry>
D107: Adult, Community and Other Education | G107: Electricity Transmission | J107: Machinery and Equipment Manufacturing, nfd
D108: Education and Training, nfd | G108: Electricity Distribution | J108: Professional and Scientific Equipment Manufacturing
C109: Health Care and Social Assistance | D109: <Whole industry> | G109: On Selling Electricity and Electricity Market Operation | J109: Computer and Electronic Equipment Manufacturing
D110: Hospitals | G110: Gas Supply | J110: Electrical Equipment Manufacturing
D111: Medical and Other Health Care Services | G111: Water Supply, Sewerage and Drainage Services | J111: Domestic Appliance Manufacturing
D112: Residential Care Services | G112: Waste Collection, Treatment and Disposal Services, nfd | J112: Pump, Compressor, Heating and Ventilation Equipment Manufacturing
D113: Social Assistance Services | G113: Waste Collection Services | J113: Specialised Machinery and Equipment Manufacturing
D114: Health Care and Social Assistance, nfd | G114: Waste Treatment, Disposal and Remediation Services | J114: Other Machinery and Equipment Manufacturing
C115: Arts and Recreation Services | D115: <Whole industry> | G115: Electricity, Gas, Water and Waste Services, nfd | I115: Furniture and Other Manufacturing | J115: <Whole industry>
D116: Heritage Activities | F116: Construction | G116: <Whole industry> | J116: Furniture and Other Manufacturing, nfd
D117: Creative and Performing Arts Activities | G117: Building Construction, nfd | J117: Furniture Manufacturing
D118: Sports and Recreation Activities | G118: Residential Building Construction | J118: Other Manufacturing
D119: Gambling Activities | G119: Non-Residential Building Construction | I119: Manufacturing, nfd | J119: <One subsector only - no selection available>
D120: Arts and Recreation Services, nfd | G120: Heavy and Civil Engineering Construction | I120: Electricity Supply | J120: <Whole industry>
C121: Other Services | D121: <Whole industry> | G121: Construction Services, nfd | J121: Electricity Supply, nfd
D122: Repair and Maintenance | G122: Land Development and Site Preparation Services | J122: Electricity Generation
D123: Personal and Other Services | G123: Building Structure Services | J123: Electricity Transmission
D124: Private Households Employing Staff and Undifferentiated Goods and Service-Producing Activities of Households for Own Use | G124: Building Installation Services | J124: Electricity Distribution
D125: Other Services, nfd | G125: Building Completion Services | J125: On Selling Electricity and Electricity Market Operation
C126: <End> | G126: Other Construction Services | I126: Gas Supply | J126: <One subsector only - no selection available>
G127: Construction, nfd | I127: Water Supply, Sewerage and Drainage Services | J127: <One subsector only - no selection available>
F128: Wholesale Trade | G128: <Whole industry> | I128: Waste Collection, Treatment and Disposal Services | J128: <Whole industry>
G129: Basic Material Wholesaling, nfd | J129: Waste Collection, Treatment and Disposal Services, nfd
G130: Agricultural Product Wholesaling | J130: Waste Collection Services
G131: Mineral, Metal and Chemical Wholesaling | J131: Waste Treatment, Disposal and Remediation Services
G132: Timber and Hardware Goods Wholesaling | I132: Electricity, Gas, Water and Waste Services, nfd | J132: <One subsector only - no selection available>
G133: Machinery and Equipment Wholesaling, nfd | I133: Building Construction | J133: <Whole industry>
G134: Specialised Industrial Machinery and Equipment Wholesaling | J134: Building Construction, nfd
G135: Other Machinery and Equipment Wholesaling | J135: Residential Building Construction
G136: Motor Vehicle and Motor Vehicle Parts Wholesaling | J136: Non-Residential Building Construction
G137: Grocery, Liquor and Tobacco Product Wholesaling | I137: Heavy and Civil Engineering Construction | J137: <One subsector only - no selection available>
G138: Other Goods Wholesaling, nfd | I138: Construction Services | J138: <Whole industry>
G139: Textile, Clothing and Footwear Wholesaling | J139: Construction Services, nfd
G140: Pharmaceutical and Toiletry Goods Wholesaling | J140: Land Development and Site Preparation Services
G141: Furniture, Floor Covering and Other Goods Wholesaling | J141: Building Structure Services
G142: Commission-Based Wholesaling | J142: Building Installation Services
G143: Wholesale Trade, nfd | J143: Building Completion Services
F144: Retail Trade | G144: <Whole industry> | J144: Other Construction Services
G145: Motor Vehicle and Motor Vehicle Parts Retailing, nfd | I145: Construction, nfd | J145: <One subsector only - no selection available>
G146: Motor Vehicle Retailing | I146: Basic Material Wholesaling | J146: <Whole industry>
G147: Motor Vehicle Parts and Tyre Retailing | J147: Basic Material Wholesaling, nfd
G148: Fuel Retailing | J148: Agricultural Product Wholesaling
G149: Food Retailing, nfd | J149: Mineral, Metal and Chemical Wholesaling
G150: Supermarket and Grocery Stores | J150: Timber and Hardware Goods Wholesaling
G151: Specialised Food Retailing | I151: Machinery and Equipment Wholesaling | J151: <Whole industry>
G152: Other Store-Based Retailing, nfd | J152: Machinery and Equipment Wholesaling, nfd
G153: Furniture, Floor Coverings, Houseware and Textile Goods Retailing | J153: Specialised Industrial Machinery and Equipment Wholesaling
G154: Electrical and Electronic Goods Retailing | J154: Other Machinery and Equipment Wholesaling
G155: Hardware, Building and Garden Supplies Retailing | I155: Motor Vehicle and Motor Vehicle Parts Wholesaling | J155: <One subsector only - no selection available>
G156: Recreational Goods Retailing | I156: Grocery, Liquor and Tobacco Product Wholesaling | J156: <One subsector only - no selection available>
G157: Clothing, Footwear and Personal Accessory Retailing | I157: Other Goods Wholesaling | J157: <Whole industry>
G158: Department Stores | J158: Other Goods Wholesaling, nfd
G159: Pharmaceutical and Other Store-Based Retailing | J159: Textile, Clothing and Footwear Wholesaling
G160: Non-Store Retailing and Retail Commission-Based Buying and/or Selling, nfd | J160: Pharmaceutical and Toiletry Goods Wholesaling
G161: Non-Store Retailing | J161: Furniture, Floor Covering and Other Goods Wholesaling
G162: Retail Commission-Based Buying and/or Selling | I162: Commission-Based Wholesaling | J162: <One subsector only - no selection available>
G163: Retail Trade, nfd | I163: Wholesale Trade, nfd | J163: <One subsector only - no selection available>
F164: Accommodation and Food Services | G164: <Whole industry> | I164: Motor Vehicle and Motor Vehicle Parts Retailing | J164: <Whole industry>
G165: Accommodation | J165: Motor Vehicle and Motor Vehicle Parts Retailing, nfd
G166: Food and Beverage Services, nfd | J166: Motor Vehicle Retailing
G167: Cafes, Restaurants and Takeaway Food Services | J167: Motor Vehicle Parts and Tyre Retailing
G168: Pubs, Taverns and Bars | I168: Fuel Retailing | J168: <One subsector only - no selection available>
G169: Clubs (Hospitality) | I169: Food Retailing | J169: <Whole industry>
G170: Accommodation and Food Services, nfd | J170: Food Retailing, nfd
F171: Transport, Postal and Warehousing | G171: <Whole industry> | J171: Supermarket and Grocery Stores
G172: Road Transport, nfd | J172: Specialised Food Retailing
G173: Road Freight Transport | I173: Other Store-Based Retailing | J173: <Whole industry>
G174: Road Passenger Transport | J174: Other Store-Based Retailing, nfd
G175: Rail Transport, nfd | J175: Furniture, Floor Coverings, Houseware and Textile Goods Retailing
G176: Rail Freight Transport | J176: Electrical and Electronic Goods Retailing
G177: Rail Passenger Transport | J177: Hardware, Building and Garden Supplies Retailing
G178: Water Transport, nfd | J178: Recreational Goods Retailing
G179: Water Freight Transport | J179: Clothing, Footwear and Personal Accessory Retailing
G180: Water Passenger Transport | J180: Department Stores
G181: Air and Space Transport | J181: Pharmaceutical and Other Store-Based Retailing
G182: Other Transport, nfd | I182: Non-Store Retailing and Retail Commission-Based Buying and/or Selling | J182: <Whole industry>
G183: Scenic and Sightseeing Transport | J183: Non-Store Retailing and Retail Commission-Based Buying and/or Selling, nfd
G184: Pipeline and Other Transport | J184: Non-Store Retailing
G185: Postal and Courier Pick-up and Delivery Services | J185: Retail Commission-Based Buying and/or Selling
G186: Transport Support Services, nfd | I186: Retail Trade, nfd | J186: <One subsector only - no selection available>
G187: Water Transport Support Services | I187: Accommodation | J187: <One subsector only - no selection available>
G188: Airport Operations and Other Air Transport Support Services | I188: Food and Beverage Services | J188: <Whole industry>
G189: Other Transport Support Services | J189: Food and Beverage Services, nfd
G190: Warehousing and Storage Services | J190: Cafes, Restaurants and Takeaway Food Services
G191: Transport, Postal and Warehousing, nfd | J191: Pubs, Taverns and Bars
F192: Information Media and Telecommunications | G192: <Whole industry> | J192: Clubs (Hospitality)
G193: Publishing (except Internet and Music Publishing), nfd | I193: Accommodation and Food Services, nfd | J193: <One subsector only - no selection available>
G194: Newspaper, Periodical, Book and Directory Publishing | I194: Road Transport | J194: <Whole industry>
G195: Software Publishing | J195: Road Transport, nfd
G196: Motion Picture and Sound Recording Activities, nfd | J196: Road Freight Transport
G197: Motion Picture and Video Activities | J197: Road Passenger Transport
G198: Sound Recording and Music Publishing | I198: Rail Transport | J198: <Whole industry>
G199: Broadcasting (except Internet), nfd | J199: Rail Transport, nfd
G200: Radio Broadcasting | J200: Rail Freight Transport
... 178 more rows

Sheet Trend Data IN
A1: Seq No | B1: Level | C1: ANZSIC06 Code | D1: ANZSIC 2006 Title | E1: 2005-05-01 | F1: 2006-05-01 | G1: 2007-05-01 | H1: 2008-05-01 | I1: 2009-05-01 | J1: 2010-05-01 | K1: 2011-05-01 | L1: 2012-05-01 | M1: 2013-05-01 | N1: 2014-05-01 | O1: 2015-05-01 | P1: 2016-05-01 | Q1: 2017-05-01 | R1: 2018-05-01 | S1: 2019-05-01 | T1: 2020-05-01
A2: 1 | B2: 1 | C2: A | D2: Agriculture, Forestry and Fishing | E2: 354.5267147 | F2: 338.4641047 | G2: 340.1516331 | H2: 358.1599515 | I2: 340.4865205 | J2: 357.5362864 | K2: 315.2727981 | L2: 332.9876827 | M2: 293.2996425 | N2: 320.9626895 | O2: 292.3885381 | P2: 326.8525617 | Q2: 308.6433715 | R2: 323.7796611 | S2: 328.1881066 | T2: 354.5446145
A3: 2 | B3: 2 | C3: 01 | D3: Agriculture | E3: 303.2137624 | F3: 293.5209674 | G3: 299.7120845 | H3: 302.66169 | I3: 301.3098571 | J3: 313.5235551 | K3: 276.9737341 | L3: 291.7933201 | M3: 252.4487371 | N3: 281.4743047 | O3: 253.9460995 | P3: 289.5099621 | Q3: 252.6005955 | R3: 283.9199355 | S3: 281.8663987 | T3: 318.6179975
A4: 3 | B4: 3 | C4: 010 | D4: Agriculture, nfd | E4: 42.89194915 | F4: 29.16572835 | G4: 29.74180758 | H4: 33.83304935 | I4: 36.41444016 | J4: 44.23074517 | K4: 39.58559821 | L4: 37.7481039 | M4: 45.87351415 | N4: 66.56434016 | O4: 62.21851292 | P4: 63.92964024 | Q4: 40.35199705 | R4: 42.18761889 | S4: 23.36364721 | T4: 45.40635278
A5: 4 | B5: 3 | C5: 011 | D5: Nursery and Floriculture Production | E5: 14.21714112 | F5: 14.59219567 | G5: 18.99536521 | H5: 10.91440575 | I5: 14.01921794 | J5: 13.62244185 | K5: 15.39353848 | L5: 9.564926135 | M5: 8.723168433 | N5: 10.99909804 | O5: 12.69266727 | P5: 13.97595775 | Q5: 12.98927191 | R5: 10.32165388 | S5: 10.31724134 | T5: 9.625773364
A6: 5 | B6: 3 | C6: 012 | D6: Mushroom and Vegetable Growing | E6: 21.92501243 | F6: 21.92248834 | G6: 20.94668291 | H6: 21.27081955 | I6: 16.72169353 | J6: 20.34261932 | K6: 14.73632094 | L6: 19.97253923 | M6: 17.19206562 | N6: 18.22986927 | O6: 18.43077942 | P6: 17.28672944 | Q6: 18.89884872 | R6: 19.44620839 | S6: 22.32980131 | T6: 17.17274378
A7: 6 | B7: 3 | C7: 013 | D7: Fruit and Tree Nut Growing | E7: 45.36751416 | F7: 48.0114836 | G7: 41.36331072 | H7: 27.93218441 | I7: 22.47059656 | J7: 30.58367635 | K7: 28.30246581 | L7: 30.48495061 | M7: 29.10604171 | N7: 28.70696683 | O7: 22.67076157 | P7: 35.9072289 | Q7: 39.36266356 | R7: 41.61694361 | S7: 28.8301802 | T7: 35.92484736
A8: 7 | B8: 3 | C8: 014 | D8: Sheep, Beef Cattle and Grain Farming | E8: 131.4771298 | F8: 132.1207786 | G8: 135.6259131 | H8: 155.397845 | I8: 150.5748893 | J8: 138.9156987 | K8: 120.2660293 | L8: 133.3267478 | M8: 96.69168517 | N8: 119.5766559 | O8: 89.3668839 | P8: 96.25436003 | Q8: 99.22080866 | R8: 114.154254 | S8: 144.1332547 | T8: 159.2661049
A9: 8 | B9: 3 | C9: 015 | D9: Other Crop Growing | E9: 10.91316781 | F9: 8.688739103 | G9: 9.816960305 | H9: 13.22181791 | I9: 10.74910115 | J9: 12.00126151 | K9: 8.110031027 | L9: 11.49153941 | M9: 13.77269271 | N9: 3.397786759 | O9: 6.32150039 | P9: 4.035144511 | Q9: 4.049793917 | R9: 6.9837767 | S9: 4.962291031 | T9: 12.13531221
A10: 9 | B10: 3 | C10: 016 | D10: Dairy Cattle Farming | E10: 18.88043967 | F10: 18.67300774 | G10: 27.46360484 | H10: 24.29905646 | I10: 23.50871766 | J10: 28.44371481 | K10: 26.88143395 | L10: 22.73831285 | M10: 20.52004903 | N10: 20.45631456 | O10: 19.56260161 | P10: 35.01040756 | Q10: 23.36306175 | R10: 26.22104367 | S10: 21.36435183 | T10: 17.82380742
A11: 10 | B11: 3 | C11: 017 | D11: Poultry Farming | E11: 6.381979033 | F11: 8.932944678 | G11: 6.61847275 | H11: 4.961773544 | I11: 9.028212184 | J11: 7.032285368 | K11: 11.61195115 | L11: 13.18123358 | M11: 6.361067472 | N11: 3.673116007 | O11: 7.530421384 | P11: 14.50499764 | Q11: 7.672416534 | R11: 12.18987998 | S11: 9.790599064 | T11: 11.95704911
A12: 11 | B12: 3 | C12: 018 | D12: Deer Farming | E12: 0.1033375132 | F12: 0.1020909585 | G12: 0.0987454672 | H12: 0.0953845089 | I12: 0.0927636175 | J12: 0.4063562736 | K12: 0.0939073351 | L12: 0.0984755204 | M12: 0.1054203388 | N12: 0.1118387727 | O12: 0.1131168321 | P12: 0.1041812468 | Q12: 0.0928076893 | R12: 0.1724899394 | S12: 0.2392596079 | T12: 0.0713587989
A13: 12 | B13: 3 | C13: 019 | D13: Other Livestock Farming | E13: 11.60093593 | F13: 10.84369791 | G13: 8.098907559 | H13: 9.849494887 | I13: 16.25318775 | J13: 14.96848903 | K13: 10.08597304 | L13: 11.24591625 | M13: 11.72635055 | N13: 7.884811365 | O13: 15.76680544 | P13: 12.08186707 | Q13: 7.737554484 | R13: 12.99669957 | S13: 15.2067311 | T13: 11.74085481
A14: 13 | B14: 2 | C14: 02 | D14: Aquaculture | E14: 4.695370785 | F14: 3.670289501 | G14: 4.408412712 | H14: 3.747016653 | I14: 5.340981134 | J14: 4.297838803 | K14: 3.396228163 | L14: 2.443726626 | M14: 5.566616324 | N14: 7.299245897 | O14: 5.310317006 | P14: 6.60864339 | Q14: 7.330720613 | R14: 6.899670481 | S14: 5.562738477 | T14: 4.803194813
A15: 14 | B15: 3 | C15: 020 | D15: Aquaculture | E15: 4.695370785 | F15: 3.670289501 | G15: 4.408412712 | H15: 3.747016653 | I15: 5.340981134 | J15: 4.297838803 | K15: 3.396228163 | L15: 2.443726626 | M15: 5.566616324 | N15: 7.299245897 | O15: 5.310317006 | P15: 6.60864339 | Q15: 7.330720613 | R15: 6.899670481 | S15: 5.562738477 | T15: 4.803194813
A16: 15 | B16: 2 | C16: 03 | D16: Forestry and Logging | E16: 10.21669893 | F16: 8.416016746 | G16: 6.859758599 | H16: 10.02992679 | I16: 7.015076683 | J16: 7.227976697 | K16: 5.193329764 | L16: 9.404409487 | M16: 4.87903151 | N16: 6.75263274 | O16: 3.80053858 | P16: 7.347613119 | Q16: 8.303464576 | R16: 7.278352308 | S16: 5.434607985 | T16: 3.624422482
A17: 16 | B17: 3 | C17: 030 | D17: Forestry and Logging | E17: 10.21669893 | F17: 8.416016746 | G17: 6.859758599 | H17: 10.02992679 | I17: 7.015076683 | J17: 7.227976697 | K17: 5.193329764 | L17: 9.404409487 | M17: 4.87903151 | N17: 6.75263274 | O17: 3.80053858 | P17: 7.347613119 | Q17: 8.303464576 | R17: 7.278352308 | S17: 5.434607985 | T17: 3.624422482
A18: 17 | B18: 2 | C18: 04 | D18: Fishing, Hunting and Trapping | E18: 8.018316144 | F18: 7.074826636 | G18: 6.227922895 | H18: 8.73403988 | I18: 3.206755419 | J18: 10.17617871 | K18: 5.733837636 | L18: 7.746805015 | M18: 5.846348198 | N18: 4.066235492 | O18: 6.80312519 | P18: 6.097302944 | Q18: 8.412634051 | R18: 5.40062602 | S18: 6.499356974 | T18: 5.59406127
A19: 18 | B19: 3 | C19: 040 | D19: Fishing, Hunting and Trapping, nfd | E19: 3.323737186 | F19: 0.8555513338 | G19: 1.230784636 | H19: 3.015481529 | I19: 0.4178185778 | J19: 1.727211263 | K19: 1.178913426 | L19: 1.1304008 | M19: 0.0914373049 | N19: 0.1389683357 | O19: 0.1398538539 | P19: 1.600694962 | Q19: 0.1659724898 | R19: 0.1358138306 | S19: 0.2321035533 | T19: 0.3021619464
A20: 19 | B20: 3 | C20: 041 | D20: Fishing | E20: 5.50483969 | F20: 5.31483833 | G20: 5.415778084 | H20: 5.681677463 | I20: 2.863814866 | J20: 4.851456553 | K20: 4.000759705 | L20: 6.483843531 | M20: 5.63680331 | N20: 3.48029285 | O20: 5.954964503 | P20: 5.115819841 | Q20: 8.30494998 | R20: 5.189386534 | S20: 6.127412439 | T20: 4.735455249
A21: 20 | B21: 3 | C21: 042 | D21: Hunting and Trapping | E21: 0.1196157775 | F21: 1.290958013 | G21: 0.1069432701 | H21: 0.7636191634 | I21: 0.075950671 | J21: 2.358475137 | K21: 0.3097782746 | L21: 0.1774586954 | M21: 0.3171749394 | N21: 0.4172767063 | O21: 0.7190121318 | P21: 0.0899701956 | Q21: 0.1162572701 | R21: 0.1436830786 | S21: 0.167180918 | T21: 0.8962105426
A22: 21 | B22: 2 | C22: 05 | D22: Agriculture, Forestry and Fishing Support Services | E22: 26.42618126 | F22: 24.41362758 | G22: 21.25375398 | H22: 31.08811412 | I22: 20.8954402 | J22: 19.87714214 | K22: 22.18447742 | L22: 22.80623979 | M22: 22.04866168 | N22: 21.65174521 | O22: 21.5146367 | P22: 20.35508256 | Q22: 33.18419259 | R22: 22.57639383 | S22: 30.22599406 | T22: 23.88235615
A23: 22 | B23: 3 | C23: 050 | D23: Agriculture, Forestry and Fishing Support Services, nfd | E23: 0.0992397634 | F23: 0.0986681057 | G23: 0.098875775 | H23: 0.0994870305 | I23: 0.1004656094 | J23: 0.0997876122 | K23: 0.5349486539 | L23: 0.0954399157 | M23: 0.0936956529 | N23: 0.0939082148 | O23: 0.0955863784 | P23: 0.0963543204 | Q23: 0.5985759585 | R23: 0.0947227475 | S23: 0.095302347 | T23: 0.0963419542
A24: 23 | B24: 3 | C24: 051 | D24: Forestry Support Services | E24: 3.479266744 | F24: 2.85276097 | G24: 2.240525011 | H24: 5.651229789 | I24: 1.681897856 | J24: 3.731102683 | K24: 3.618379099 | L24: 2.585627843 | M24: 3.214809915 | N24: 2.202193135 | O24: 3.101070801 | P24: 4.925837865 | Q24: 5.382424486 | R24: 2.225587127 | S24: 4.476023668 | T24: 4.198359054
A25: 24 | B25: 3 | C25: 052 | D25: Agriculture and Fishing Support Services | E25: 22.5828421 | F25: 21.21452754 | G25: 18.70880246 | H25: 24.56797153 | I25: 19.05331312 | J25: 15.79174338 | K25: 17.83137287 | L25: 20.17179416 | M25: 18.75695011 | N25: 19.51917081 | O25: 18.33871902 | P25: 15.02893795 | Q25: 26.83386475 | R25: 20.20502463 | S25: 25.32934996 | T25: 19.26862849
A26: 25 | B26: 2 | C26: A0 | D26: Agriculture, Forestry and Fishing, nfd | E26: 2.773611969 | F26: 1.495651984 | G26: 0.9867418853 | H26: 0.4296076461 | I26: 1.572140688 | J26: 1.907020757 | K26: 2.523307721 | L26: 0.5915903571 | M26: 4.711414837 | N26: 2.89266916 | O26: 4.21391578 | P26: 0.8047274295 | Q26: 0.9361235181 | R26: 0.8580043536 | S26: 0.1444914313 | T26: 0.155393819
A27: 26 | B27: 3 | C27: A00 | D27: Agriculture, Forestry and Fishing, nfd | E27: 2.773611969 | F27: 1.495651984 | G27: 0.9867418853 | H27: 0.4296076461 | I27: 1.572140688 | J27: 1.907020757 | K27: 2.523307721 | L27: 0.5915903571 | M27: 4.711414837 | N27: 2.89266916 | O27: 4.21391578 | P27: 0.8047274295 | Q27: 0.9361235181 | R27: 0.8580043536 | S27: 0.1444914313 | T27: 0.155393819
A28: 27 | B28: 1 | C28: B | D28: Mining | E28: 113.4916569 | F28: 133.3172422 | G28: 135.5738121 | H28: 167.775377 | I28: 157.8174358 | J28: 183.1755515 | K28: 218.2019729 | L28: 278.3846341 | M28: 259.8064862 | N28: 259.3503588 | O28: 223.1257845 | P28: 219.5362404 | Q28: 218.6122866 | R28: 237.8771794 | S28: 246.2680291 | T28: 233.3111082
A29: 28 | B29: 2 | C29: 06 | D29: Coal Mining | E29: 27.77354122 | F29: 29.89199454 | G29: 23.84656834 | H29: 29.65568409 | I29: 33.01799417 | J29: 36.72422571 | K29: 48.54322962 | L29: 61.12805299 | M29: 46.98746061 | N29: 58.07290735 | O29: 38.22261927 | P29: 41.87641732 | Q29: 45.82977337 | R29: 51.94564791 | S29: 55.73509575 | T29: 50.06041233
A30: 29 | B30: 3 | C30: 060 | D30: Coal Mining | E30: 27.77354122 | F30: 29.89199454 | G30: 23.84656834 | H30: 29.65568409 | I30: 33.01799417 | J30: 36.72422571 | K30: 48.54322962 | L30: 61.12805299 | M30: 46.98746061 | N30: 58.07290735 | O30: 38.22261927 | P30: 41.87641732 | Q30: 45.82977337 | R30: 51.94564791 | S30: 55.73509575 | T30: 50.06041233
A31: 30 | B31: 2 | C31: 07 | D31: Oil and Gas Extraction | E31: 6.420741554 | F31: 10.31733337 | G31: 10.70591379 | H31: 10.98161732 | I31: 13.74762574 | J31: 16.8788766 | K31: 11.69491884 | L31: 13.65945908 | M31: 21.95448764 | N31: 24.98544676 | O31: 26.0889405 | P31: 24.28420074 | Q31: 17.90454758 | R31: 29.97645156 | S31: 26.81131501 | T31: 21.39517899
A32: 31 | B32: 3 | C32: 070 | D32: Oil and Gas Extraction | E32: 6.420741554 | F32: 10.31733337 | G32: 10.70591379 | H32: 10.98161732 | I32: 13.74762574 | J32: 16.8788766 | K32: 11.69491884 | L32: 13.65945908 | M32: 21.95448764 | N32: 24.98544676 | O32: 26.0889405 | P32: 24.28420074 | Q32: 17.90454758 | R32: 29.97645156 | S32: 26.81131501 | T32: 21.39517899
A33: 32 | B33: 2 | C33: 08 | D33: Metal Ore Mining | E33: 37.74180929 | F33: 44.97604774 | G33: 40.66978224 | H33: 53.50029097 | I33: 48.22305578 | J33: 57.34187301 | K33: 79.62948053 | L33: 87.32889795 | M33: 79.38811423 | N33: 65.12818707 | O33: 65.52591437 | P33: 60.09191371 | Q33: 77.41728743 | R33: 75.34137852 | S33: 105.3506112 | T33: 98.65765417
A34: 33 | B34: 3 | C34: 080 | D34: Metal Ore Mining | E34: 37.74180929 | F34: 44.97604774 | G34: 40.66978224 | H34: 53.50029097 | I34: 48.22305578 | J34: 57.34187301 | K34: 79.62948053 | L34: 87.32889795 | M34: 79.38811423 | N34: 65.12818707 | O34: 65.52591437 | P34: 60.09191371 | Q34: 77.41728743 | R34: 75.34137852 | S34: 105.3506112 | T34: 98.65765417
A35: 34 | B35: 2 | C35: 09 | D35: Non-Metallic Mineral Mining and Quarrying | E35: 8.075187352 | F35: 10.44113426 | G35: 9.423884167 | H35: 10.92815263 | I35: 10.1533656 | J35: 10.92013924 | K35: 7.152766792 | L35: 18.07419809 | M35: 12.61941802 | N35: 15.72220942 | O35: 12.00699869 | P35: 12.36121961 | Q35: 10.17784721 | R35: 14.92814204 | S35: 15.65798848 | T35: 8.159665595
A36: 35 | B36: 3 | C36: 090 | D36: Non-Metallic Mineral Mining and Quarrying, nfd | E36: 2.087526934 | F36: 3.31485809 | G36: 3.394206206 | H36: 2.642754683 | I36: 4.029242073 | J36: 4.09849139 | K36: 1.15056014 | L36: 5.603398539 | M36: 3.233055109 | N36: 2.962953312 | O36: 4.033052227 | P36: 2.682926466 | Q36: 4.776896673 | R36: 3.030276619 | S36: 3.506513624 | T36: 2.223375592
A37: 36 | B37: 3 | C37: 091 | D37: Construction Material Mining | E37: 1.796227511 | F37: 4.173666218 | G37: 4.479426131 | H37: 5.922948267 | I37: 4.915233978 | J37: 4.25483712 | K37: 3.049546902 | L37: 7.162550598 | M37: 5.80670226 | N37: 7.45944173 | O37: 1.628033574 | P37: 4.496372441 | Q37: 2.19310212 | R37: 6.070759476 | S37: 5.733943215 | T37: 2.222314708
A38: 37 | B38: 3 | C38: 099 | D38: Other Non-Metallic Mineral Mining and Quarrying | E38: 4.622119555 | F38: 3.298189871 | G38: 1.760453829 | H38: 2.578255475 | I38: 1.229513008 | J38: 2.529230433 | K38: 2.919401096 | L38: 4.664016051 | M38: 2.917794087 | N38: 4.444168536 | O38: 5.187819595 | P38: 4.473422646 | Q38: 2.561511494 | R38: 5.691350249 | S38: 6.55467069 | T38: 3.880962666
A39: 38 | B39: 2 | C39: 10 | D39: Exploration and Other Mining Support Services | E39: 18.33621564 | F39: 20.08660082 | G39: 30.17276127 | H39: 36.63068105 | I39: 32.25830824 | J39: 32.49350674 | K39: 45.30461638 | L39: 55.75903998 | M39: 41.82166469 | N39: 61.69311461 | O39: 49.88359729 | P39: 53.85027046 | Q39: 52.38922864 | R39: 56.45583249 | S39: 34.41279901 | T39: 47.76174698
A40: 39 | B40: 3 | C40: 100 | D40: Exploration and Other Mining Support Services, nfd | E40: 0.0948582827 | F40: 0.2512752691 | G40: 0.0846445717 | H40: 0.0780752323 | I40: 0.2100646894 | J40: 0.1903241886 | K40: 0.5152488453 | L40: 0.0803860553 | M40: 0.0814682432 | N40: 0.1596795361 | O40: 0.071253778 | P40: 0.3446551825 | Q40: 1.187808403 | R40: 0.8763179597 | S40: 0.8467358786 | T40: 0.9236209455
A41: 40 | B41: 3 | C41: 101 | D41: Exploration | E41: 13.30892591 | F41: 13.30516256 | G41: 16.94009016 | H41: 28.01709541 | I41: 24.0270825 | J41: 19.43197776 | K41: 19.96564846 | L41: 22.99234709 | M41: 20.10135759 | N41: 31.30703721 | O41: 30.79363825 | P41: 32.75320985 | Q41: 26.55028913 | R41: 16.47434614 | S41: 10.34817039 | T41: 20.06277959
A42: 41 | B42: 3 | C42: 109 | D42: Other Mining Support Services | E42: 5.095691981 | F42: 6.778335417 | G42: 13.73280486 | H42: 9.475629783 | I42: 8.664436731 | J42: 13.38433548 | K42: 25.42518919 | L42: 34.08811348 | M42: 22.70196286 | N42: 31.78317522 | O42: 20.01416461 | P42: 21.42956698 | Q42: 24.47568191 | R42: 38.19605605 | S42: 22.27918604 | T42: 25.7920045
A43: 42 | B43: 2 | C43: B0 | D43: Mining, nfd | E43: 14.94028351 | F43: 15.4199598 | G43: 18.01214701 | H43: 21.60071228 | I43: 16.1537122 | J43: 23.59268668 | K43: 20.49646985 | L43: 36.40348275 | M43: 52.64903729 | N43: 26.67708761 | O43: 25.85525287 | P43: 22.7936426 | Q43: 9.844332774 | R43: 2.447011363 | S43: 0.8324718063 | T43: 0.1941663735
A44: 43 | B44: 3 | C44: B00 | D44: Mining, nfd | E44: 14.94028351 | F44: 15.4199598 | G44: 18.01214701 | H44: 21.60071228 | I44: 16.1537122 | J44: 23.59268668 | K44: 20.49646985 | L44: 36.40348275 | M44: 52.64903729 | N44: 26.67708761 | O44: 25.85525287 | P44: 22.7936426 | Q44: 9.844332774 | R44: 2.447011363 | S44: 0.8324718063 | T44: 0.1941663735
A45: 44 | B45: 1 | C45: C | D45: Manufacturing | E45: 1024.187895 | F45: 1010.132922 | G45: 1030.077169 | H45: 1062.84622 | I45: 994.0843363 | J45: 969.4188734 | K45: 958.2462544 | L45: 943.976072 | M45: 918.1526271 | N45: 919.1316837 | O45: 914.1029325 | P45: 889.0385679 | Q45: 886.7111459 | R45: 947.6796361 | S45: 898.0374358 | T45: 852.7600525
A46: 45 | B46: 2 | C46: 11 | D46: Food Product Manufacturing | E46: 181.9532388 | F46: 172.6116831 | G46: 197.0945413 | H46: 203.9436159 | I46: 183.94715 | J46: 189.2035812 | K46: 186.9323032 | L46: 189.6362199 | M46: 182.7562302 | N46: 192.4635022 | O46: 209.8859284 | P46: 195.3496382 | Q46: 198.7791855 | R46: 222.2773367 | S46: 206.8432981 | T46: 180.36623
A47: 46 | B47: 3 | C47: 110 | D47: Food Product Manufacturing, nfd | E47: 17.60950575 | F47: 11.52353875 | G47: 17.50832411 | H47: 19.76120001 | I47: 15.54310309 | J47: 19.39403718 | K47: 18.35959392 | L47: 25.0241272 | M47: 30.81817554 | N47: 23.66672693 | O47: 39.8451171 | P47: 23.43530786 | Q47: 22.35862919 | R47: 12.3604131 | S47: 11.45985271 | T47: 20.98832189
A48: 47 | B48: 3 | C48: 111 | D48: Meat and Meat Product Manufacturing | E48: 43.27987747 | F48: 49.27126666 | G48: 53.89649087 | H48: 49.55378681 | I48: 55.2183874 | J48: 44.70670451 | K48: 50.66139512 | L48: 48.28149788 | M48: 45.01740961 | N48: 44.66065289 | O48: 57.70152023 | P48: 52.73874925 | Q48: 60.09347519 | R48: 58.73341345 | S48: 60.53918976 | T48: 58.68251665
A49: 48 | B49: 3 | C49: 112 | D49: Seafood Processing | E49: 3.03444535 | F49: 2.119344185 | G49: 2.269261917 | H49: 3.238118502 | I49: 0.9271548482 | J49: 4.08559054 | K49: 1.408162733 | L49: 1.151778153 | M49: 1.79145759 | N49: 1.258879062 | O49: 3.301040462 | P49: 2.883552921 | Q49: 3.589318464 | R49: 4.162607504 | S49: 1.4450624 | T49: 2.35269832
A50: 49 | B50: 3 | C50: 113 | D50: Dairy Product Manufacturing | E50: 16.01234121 | F50: 12.9798634 | G50: 18.87816891 | H50: 17.71829044 | I50: 16.94615732 | J50: 17.32544361 | K50: 19.49206285 | L50: 14.65886449 | M50: 17.19753248 | N50: 15.0297051 | O50: 12.73116825 | P50: 13.97531882 | Q50: 18.35818691 | R50: 21.06579406 | S50: 21.19683954 | T50: 20.04691379
A51: 50 | B51: 3 | C51: 114 | D51: Fruit and Vegetable Processing | E51: 7.085603454 | F51: 11.51128794 | G51: 9.23387288 | H51: 8.99355252 | I51: 7.078371018 | J51: 10.19301806 | K51: 6.594179116 | L51: 9.268971941 | M51: 4.876313404 | N51: 3.380380448 | O51: 3.965949148 | P51: 11.12214322 | Q51: 5.12847545 | R51: 10.8345512 | S51: 9.726511366 | T51: 5.265492095
A52: 51 | B52: 3 | C52: 115 | D52: Oil and Fat Manufacturing | E52: 0.6929393377 | F52: 2.758150437 | G52: 2.307598391 | H52: 1.123390069 | I52: 1.898340627 | J52: 1.714747312 | K52: 1.106261862 | L52: 0.7661986646 | M52: 1.196974511 | N52: 2.144688986 | O52: 1.478557832 | P52: 2.537872307 | Q52: 0.3851984989 | R52: 1.77324687 | S52: 0.8304644743 | T52: 1.000877982
A53: 52 | B53: 3 | C53: 116 | D53: Grain Mill and Cereal Product Manufacturing | E53: 5.77057211 | F53: 7.375425667 | G53: 5.611199508 | H53: 8.561577525 | I53: 4.066747415 | J53: 5.882859004 | K53: 4.243840465 | L53: 5.979460406 | M53: 5.783958318 | N53: 2.714485257 | O53: 3.169134567 | P53: 3.707731923 | Q53: 6.461789431 | R53: 8.76073064 | S53: 3.833266245 | T53: 6.011704796
A54: 53 | B54: 3 | C54: 117 | D54: Bakery Product Manufacturing | E54: 61.88435343 | F54: 57.21366289 | G54: 62.56422228 | H54: 66.54149986 | I54: 53.00874091 | J54: 60.50388548 | K54: 58.17132414 | L54: 63.31687403 | M54: 50.90183446 | N54: 67.42525542 | O54: 59.78140456 | P54: 58.12930191 | Q54: 55.30869728 | R54: 69.04018822 | S54: 57.95253998 | T54: 40.7506304
A55: 54 | B55: 3 | C55: 118 | D55: Sugar and Confectionery Manufacturing | E55: 13.18478264 | F55: 9.07435152 | G55: 11.59803517 | H55: 15.82123235 | I55: 13.63067035 | J55: 12.90757587 | K55: 14.24386088 | L55: 10.88409671 | M55: 11.04597579 | N55: 17.44811928 | O55: 11.81372233 | P55: 10.42535968 | Q55: 12.37373104 | R55: 18.12751352 | S55: 14.71098904 | T55: 12.00494754
A56: 55 | B56: 3 | C56: 119 | D56: Other Food Product Manufacturing | E56: 12.28622037 | F56: 8.647639429 | G56: 12.60673959 | H56: 11.98378968 | I56: 14.98590767 | J56: 11.5471388 | K56: 11.64917661 | L56: 9.064625783 | M56: 13.37790429 | N56: 12.78624606 | O56: 14.85259674 | P56: 16.14503117 | Q56: 14.32396769 | R56: 18.22059381 | S56: 26.84207793 | T56: 15.7218297
A57: 56 | B57: 2 | C57: 12 | D57: Beverage and Tobacco Product Manufacturing | E57: 35.09269664 | F57: 25.93750566 | G57: 28.09573902 | H57: 30.69561271 | I57: 28.63851654 | J57: 27.07194117 | K57: 29.55147679 | L57: 29.19508594 | M57: 31.51722849 | N57: 29.34071287 | O57: 33.05450882 | P57: 31.34780573 | Q57: 29.83612983 | R57: 33.42886078 | S57: 30.28585161 | T57: 31.79968912
A58: 57 | B58: 3 | C58: 120 | D58: Beverage and Tobacco Product Manufacturing, nfd | E58: 0.0985402609 | F58: 0.0984060405 | G58: 0.0979191239 | H58: 0.09683907 | I58: 0.0968426721 | J58: 0.0972432167 | K58: 0.3461523396 | L58: 0.1009455709 | M58: 0.1036587972 | N58: 0.1054109234 | O58: 0.1067213189 | P58: 0.5033622735 | Q58: 0.1096430532 | R58: 0.111629991 | S58: 0.1136016371 | T58: 0.1158518811
A59: 58 | B59: 3 | C59: 121 | D59: Beverage Manufacturing | E59: 33.1360032 | F59: 24.20449374 | G59: 25.84654052 | H59: 29.98652674 | I59: 25.93741742 | J59: 25.81345194 | K59: 27.5891874 | L59: 28.3195956 | M59: 28.54174843 | N59: 28.03773304 | O59: 31.60643238 | P59: 30.04087337 | Q59: 30.02232394 | R59: 33.79781361 | S59: 30.41643579 | T59: 31.62260917
A60: 59 | B60: 3 | C60: 122 | D60: Cigarette and Tobacco Product Manufacturing | E60: 2.137876284 | F60: 1.810961314 | G60: 2.205355142 | H60: 0.8998431778 | I60: 2.502909949 | J60: 1.222062073 | K60: 1.492867577 | L60: 0.5086812879 | M60: 2.449003743 | N60: 0.8596133825 | O60: 1.103340302 | P60: 0.7059637234 | Q60: 0.0843987394 | R60: 0.0893871455 | S60: 0.0985458736 | T60: 0.1082172285
A61: 60 | B61: 2 | C61: 13 | D61: Textile, Leather, Clothing and Footwear Manufacturing | E61: 53.24041649 | F61: 54.81363278 | G61: 55.44900967 | H61: 39.45542126 | I61: 49.48484417 | J61: 47.38553373 | K61: 42.88875887 | L61: 41.50867222 | M61: 40.54528638 | N61: 30.33306078 | O61: 35.37459587 | P61: 36.09864991 | Q61: 33.21906405 | R61: 40.68790213 | S61: 29.97879713 | T61: 31.51192394
A62: 61 | B62: 3 | C62: 130 | D62: Textile, Leather, Clothing and Footwear Manufacturing, nfd | E62: 3.216564479 | F62: 5.498554191 | G62: 3.696889383 | H62: 1.893705259 | I62: 0.7093185763 | J62: 1.846776493 | K62: 0.0529298058 | L62: 1.017338715 | M62: 1.76126392 | N62: 1.126761104 | O62: 0.0688466363 | P62: 2.821377678 | Q62: 0.074905531 | R62: 0.0833481832 | S62: 0.0913844395 | T62: 0.1005030809
A63: 62 | B63: 3 | C63: 131 | D63: Textile Manufacturing | E63: 1.49574135 | F63: 3.809622467 | G63: 1.810803005 | H63: 0.308877986 | I63: 4.000159798 | J63: 2.945616175 | K63: 2.001146364 | L63: 0.8008662997 | M63: 2.504829533 | N63: 2.330956396 | O63: 1.408913193 | P63: 0.7115613327 | Q63: 0.1163285466 | R63: 4.586142465 | S63: 0.7939483983 | T63: 1.583353658
A64: 63 | B64: 3 | C64: 132 | D64: Leather Tanning, Fur Dressing and Leather Product Manufacturing | E64: 1.584420944 | F64: 1.765735122 | G64: 2.256365816 | H64: 3.057268431 | I64: 3.023537711 | J64: 2.107971295 | K64: 2.906633967 | L64: 1.41347444 | M64: 1.327055289 | N64: 1.706233354 | O64: 5.03814445 | P64: 1.432535489 | Q64: 4.404029057 | R64: 3.13823042 | S64: 1.192182067 | T64: 3.162231814
A65: 64 | B65: 3 | C65: 133 | D65: Textile Product Manufacturing | E65: 16.19506648 | F65: 11.02722236 | G65: 19.01401961 | H65: 11.33925051 | I65: 13.79586464 | J65: 16.263115 | K65: 12.36037558 | L65: 13.61530116 | M65: 9.488148566 | N65: 6.909750675 | O65: 10.04604849 | P65: 14.73405308 | Q65: 15.48424304 | R65: 11.78653161 | S65: 12.39623869 | T65: 9.499932449
A66: 65 | B66: 3 | C66: 134 | D66: Knitted Product Manufacturing | E66: 1.36574256 | F66: 1.821813789 | G66: 1.876465886 | H66: 1.31795691 | I66: 1.953400304 | J66: 0.0923950594 | K66: 1.00941491 | L66: 0.7673736851 | M66: 0.5491229102 | N66: 0.0820580844 | O66: 0.0770131074 | P66: 0.3729084062 | Q66: 0.6585540123 | R66: 0.2949927769 | S66: 0.2828065399 | T66: 1.561533816
A67: 66 | B67: 3 | C67: 135 | D67: Clothing and Footwear Manufacturing | E67: 28.9203442 | F67: 31.06803709 | G67: 26.36110939 | H67: 21.15286239 | I67: 25.94787752 | J67: 23.94571514 | K67: 25.60374907 | L67: 23.67327137 | M67: 23.49819714 | N67: 17.91040287 | O67: 20.32183889 | P67: 16.20088148 | Q67: 15.09006161 | R67: 23.96738139 | S67: 16.7108378 | T67: 16.65187446
A68: 67 | B68: 2 | C68: 14 | D68: Wood Product Manufacturing | E68: 52.4212237 | F68: 47.47238689 | G68: 54.17536523 | H68: 48.77894588 | I68: 39.1716483 | J68: 45.63600863 | K68: 37.76468045 | L68: 39.98947989 | M68: 35.41256989 | N68: 53.60204364 | O68: 47.54395826 | P68: 40.5905505 | Q68: 41.75552211 | R68: 57.55553246 | S68: 48.14076875 | T68: 44.92882573
A69: 68 | B69: 3 | C69: 140 | D69: Wood Product Manufacturing, nfd | E69: 0.1 | F69: 0.1 | G69: 0.1 | H69: 0.1 | I69: 0.1 | J69: 0.1 | K69: 0.1 | L69: 0.1 | M69: 0.1 | N69: 0.1 | O69: 0.1 | P69: 0.1 | Q69: 0.1 | R69: 0.1 | S69: 0.1 | T69: 0.1
A70: 69 | B70: 3 | C70: 141 | D70: Log Sawmilling and Timber Dressing | E70: 19.17955805 | F70: 14.7089052 | G70: 18.92467517 | H70: 15.66908039 | I70: 6.880107839 | J70: 12.19266535 | K70: 12.26403962 | L70: 8.468004229 | M70: 13.41901086 | N70: 10.65166649 | O70: 10.64216428 | P70: 5.127637972 | Q70: 8.371515323 | R70: 11.32943003 | S70: 7.919199818 | T70: 12.77386319
A71: 70 | B71: 3 | C71: 149 | D71: Other Wood Product Manufacturing | E71: 33.89804225 | F71: 33.36052277 | G71: 36.10339235 | H71: 33.92995734 | I71: 32.57727617 | J71: 33.79386131 | K71: 25.45667948 | L71: 31.21832929 | M71: 20.59952416 | N71: 41.69406975 | O71: 35.37929244 | P71: 34.54660641 | Q71: 32.2669308 | R71: 44.98460034 | S71: 39.22545398 | T71: 31.67866063
A72: 71 | B72: 2 | C72: 15 | D72: Pulp, Paper and Converted Paper Product Manufacturing | E72: 21.77755652 | F72: 25.59471885 | G72: 22.49455723 | H72: 20.0928168 | I72: 20.23361526 | J72: 19.2692589 | K72: 19.52235238 | L72: 16.59699968 | M72: 12.86947357 | N72: 16.06094697 | O72: 14.32048093 | P72: 14.12194939 | Q72: 16.5203128 | R72: 14.17379631 | S72: 15.79235102 | T72: 19.9261657
A73: 72 | B73: 3 | C73: 150 | D73: Pulp, Paper and Converted Paper Product Manufacturing, nfd | E73: 5.259145869 | F73: 6.505781934 | G73: 6.421763649 | H73: 6.5908539 | I73: 5.647575845 | J73: 5.637464819 | K73: 6.07191815 | L73: 5.332205827 | M73: 3.590199926 | N73: 3.744650285 | O73: 4.989261272 | P73: 4.673335082 | Q73: 3.575561676 | R73: 1.891364651 | S73: 2.506983147 | T73: 4.485406555
A74: 73 | B74: 3 | C74: 151 | D74: Pulp, Paper and Paperboard Manufacturing | E74: 7.008969709 | F74: 9.031403919 | G74: 8.660576654 | H74: 2.070200104 | I74: 4.142148278 | J74: 3.482064473 | K74: 4.429973084 | L74: 3.123015096 | M74: 3.941849702 | N74: 2.408670919 | O74: 2.054777747 | P74: 2.713088819 | Q74: 6.704611789 | R74: 2.946872643 | S74: 3.966711447 | T74: 6.236802507
A75: 74 | B75: 3 | C75: 152 | D75: Converted Paper Product Manufacturing | E75: 8.991222803 | F75: 9.184091477 | G75: 6.475725375 | H75: 9.978601105 | I75: 9.143245512 | J75: 8.993676427 | K75: 8.29513414 | L75: 7.841190082 | M75: 5.473723113 | N75: 10.60806903 | O75: 7.975466016 | P75: 7.531222243 | Q75: 7.223693558 | R75: 10.06294947 | S75: 9.996651233 | T75: 10.2591311
A76: 75 | B76: 2 | C76: 16 | D76: Printing (including the Reproduction of Recorded Media) | E76: 53.8940374 | F76: 48.07758558 | G76: 53.40828327 | H76: 54.59329324 | I76: 52.25986157 | J76: 44.84511568 | K76: 49.83384695 | L76: 44.38484742 | M76: 44.87611599 | N76: 37.49817309 | O76: 42.8899202 | P76: 40.53128236 | Q76: 43.38047894 | R76: 32.94565139 | S76: 33.2536883 | T76: 31.90985176
A77: 76 | B77: 3 | C77: 160 | D77: Printing (including the Reproduction of Recorded Media), nfd | E77: 0.2698502403 | F77: 0.2551215374 | G77: 0.30780521 | H77: 0.088205029 | I77: 0.0925293254 | J77: 0.0970358627 | K77: 0.0993641154 | L77: 0.1004717791 | M77: 0.1024692855 | N77: 0.1030059819 | O77: 0.103628265 | P77: 0.105827491 | Q77: 0.433481786 | R77: 0.1129876471 | S77: 0.1154862345 | T77: 0.1184304632
A78: 77 | B78: 3 | C78: 161 | D78: Printing and Printing Support Services | E78: 52.76218878 | F78: 46.0424141 | G78: 51.01756063 | H78: 52.79996909 | I78: 49.86385902 | J78: 43.84045199 | K78: 49.04299259 | L78: 43.58930927 | M78: 43.86572468 | N78: 36.18459638 | O78: 42.47896286 | P78: 40.48402499 | Q78: 42.56346975 | R78: 32.29532454 | S78: 32.84129268 | T78: 31.69485562
A79: 78 | B79: 3 | C79: 162 | D79: Reproduction of Recorded Media | E79: 0.7077617634 | F79: 1.796086872 | G79: 2.165138814 | H79: 1.779622409 | I79: 2.329912893 | J79: 0.8452296345 | K79: 0.6886399619 | L79: 0.8122913446 | M79: 1.21120878 | N79: 1.65513096 | O79: 0.5570388179 | P79: 0.1188353196 | Q79: 0.2913589183 | R79: 0.5902519669 | S79: 0.2637891995 | T79: 0.1376650359
A80: 79 | B80: 2 | C80: 17 | D80: Petroleum and Coal Product Manufacturing | E80: 9.889354626 | F80: 8.47897125 | G80: 5.89071091 | H80: 8.85847867 | I80: 7.087953183 | J80: 5.290930059 | K80: 9.464138478 | L80: 11.34643793 | M80: 8.472613482 | N80: 7.228658693 | O80: 10.54056584 | P80: 6.242174862 | Q80: 9.887013326 | R80: 6.207269969 | S80: 7.959840109 | T80: 5.806133501
A81: 80 | B81: 3 | C81: 170 | D81: Petroleum and Coal Product Manufacturing | E81: 9.889354626 | F81: 8.47897125 | G81: 5.89071091 | H81: 8.85847867 | I81: 7.087953183 | J81: 5.290930059 | K81: 9.464138478 | L81: 11.34643793 | M81: 8.472613482 | N81: 7.228658693 | O81: 10.54056584 | P81: 6.242174862 | Q81: 9.887013326 | R81: 6.207269969 | S81: 7.959840109 | T81: 5.806133501
A82: 81 | B82: 2 | C82: 18 | D82: Basic Chemical and Chemical Product Manufacturing | E82: 39.9628924 | F82: 34.63736944 | G82: 41.92608998 | H82: 45.95441288 | I82: 41.21691607 | J82: 44.45479251 | K82: 45.51277246 | L82: 38.44295607 | M82: 47.07414183 | N82: 48.16394265 | O82: 50.22474867 | P82: 47.30855645 | Q82: 47.78412228 | R82: 60.8163312 | S82: 47.93942563 | T82: 53.36357026
A83: 82 | B83: 3 | C83: 180 | D83: Basic Chemical and Chemical Product Manufacturing, nfd | E83: 6.054781182 | F83: 6.453647599 | G83: 6.007705104 | H83: 4.335097283 | I83: 4.115100755 | J83: 1.908432976 | K83: 6.723780086 | L83: 5.297499939 | M83: 7.429812507 | N83: 11.27564399 | O83: 4.813435504 | P83: 6.831789169 | Q83: 5.082449674 | R83: 7.858550595 | S83: 2.266289261 | T83: 2.706811071
A84: 83 | B84: 3 | C84: 181 | D84: Basic Chemical Manufacturing | E84: 3.710715547 | F84: 2.60484105 | G84: 3.187886509 | H84: 4.733125423 | I84: 3.485287269 | J84: 4.018588627 | K84: 2.72784337 | L84: 4.172131351 | M84: 2.562275694 | N84: 5.345226185 | O84: 6.053238774 | P84: 5.868718095 | Q84: 3.903638926 | R84: 5.29842903 | S84: 6.534041883 | T84: 3.611472612
A85: 84 | B85: 3 | C85: 182 | D85: Basic Polymer Manufacturing | E85: 1.098358133 | F85: 0.8056342421 | G85: 1.504236983 | H85: 1.362877571 | I85: 0.4309884977 | J85: 0.116610531 | K85: 0.4216055036 | L85: 0.3948120989 | M85: 2.500985106 | N85: 0.1055214266 | O85: 1.911628161 | P85: 1.326773841 | Q85: 2.766664054 | R85: 1.847937767 | S85: 1.972862279 | T85: 2.869640393
A86: 85 | B86: 3 | C86: 183 | D86: Fertiliser and Pesticide Manufacturing | E86: 4.188321927 | F86: 3.124838801 | G86: 5.140689465 | H86: 6.292766395 | I86: 4.527490537 | J86: 3.988228427 | K86: 3.778743209 | L86: 3.490000043 | M86: 3.479495205 | N86: 2.700168395 | O86: 6.753051103 | P86: 3.9075126 | Q86: 2.368391118 | R86: 8.459874713 | S86: 1.794297268 | T86: 7.497824767
A87: 86 | B87: 3 | C87: 184 | D87: Pharmaceutical and Medicinal Product Manufacturing | E87: 16.92346353 | F87: 14.71438913 | G87: 16.64669409 | H87: 20.51739221 | I87: 19.86023853 | J87: 25.22019299 | K87: 24.96021197 | L87: 12.66202444 | M87: 22.16425143 | N87: 17.70578276 | O87: 20.55743476 | P87: 16.60447174 | Q87: 20.35931047 | R87: 28.95550456 | S87: 23.11714634 | T87: 24.90044066
A88: 87 | B88: 3 | C88: 185 | D88: Cleaning Compound and Toiletry Preparation Manufacturing | E88: 7.133592006 | F88: 6.277073088 | G88: 8.048162039 | H88: 6.996478813 | I88: 5.761959292 | J88: 6.05466271 | K88: 3.978554065 | L88: 11.33246799 | M88: 7.501874176 | N88: 8.083477106 | O88: 7.023815721 | P88: 12.00117456 | Q88: 12.39979504 | R88: 8.601461863 | S88: 9.473302471 | T88: 8.68567538
A89: 88 | B89: 3 | C89: 189 | D89: Other Basic Chemical Product Manufacturing | E89: 0.7595334596 | F89: 0.660120904 | G89: 1.316399217 | H89: 1.488207462 | I89: 2.642832596 | J89: 2.664701532 | K89: 2.395884542 | L89: 1.041571941 | M89: 1.154349462 | N89: 2.645162912 | O89: 3.698842329 | P89: 1.271168895 | Q89: 1.299719491 | R89: 1.735396994 | S89: 3.327011516 | T89: 4.87722259
A90: 89 | B90: 2 | C90: 19 | D90: Polymer Product and Rubber Product Manufacturing | E90: 40.33260349 | F90: 39.41500904 | G90: 45.71903226 | H90: 43.11145425 | I90: 37.57481758 | J90: 31.99534624 | K90: 33.81515351 | L90: 38.95568964 | M90: 33.98564617 | N90: 28.23795816 | O90: 32.00002975 | P90: 31.00565507 | Q90: 24.93977081 | R90: 35.89782944 | S90: 41.49139613 | T90: 28.80306691
A91: 90 | B91: 3 | C91: 190 | D91: Polymer Product and Rubber Product Manufacturing, nfd | E91: 0.0976260144 | F91: 0.0980914344 | G91: 0.530336732 | H91: 1.883815699 | I91: 1.765376581 | J91: 0.1079710741 | K91: 1.282615116 | L91: 0.6797954595 | M91: 1.792383306 | N91: 0.8451234365 | O91: 0.4794450138 | P91: 1.209400773 | Q91: 1.151457795 | R91: 0.4169402579 | S91: 0.5942544494 | T91: 0.739431799
A92: 91 | B92: 3 | C92: 191 | D92: Polymer Product Manufacturing | E92: 38.68093892 | F92: 37.53424182 | G92: 42.40944378 | H92: 39.86510281 | I92: 33.36513691 | J92: 30.39100623 | K92: 31.08907531 | L92: 37.1057131 | M92: 30.06974878 | N92: 26.49202174 | O92: 29.72179638 | P92: 28.82396364 | Q92: 23.09168333 | R92: 33.28868581 | S92: 37.05922695 | T92: 26.06419904
A93: 92 | B93: 3 | C93: 192 | D93: Natural Rubber Product Manufacturing | E93: 1.670204635 | F93: 1.894843718 | G93: 2.745092448 | H93: 1.200730889 | I93: 2.21493329 | J93: 1.174928536 | K93: 1.094001918 | L93: 0.7254221528 | M93: 1.924326074 | N93: 0.556550262 | O93: 1.5000548 | P93: 0.4989905768 | Q93: 0.348863119 | R93: 1.79719819 | S93: 3.302916036 | T93: 1.644774335
A94: 93 | B94: 2 | C94: 20 | D94: Non-Metallic Mineral Product Manufacturing | E94: 37.80950259 | F94: 43.16138143 | G94: 36.7866689 | H94: 40.86789637 | I94: 34.78133467 | J94: 39.30692328 | K94: 35.99493224 | L94: 39.72084166 | M94: 34.82795652 | N94: 33.70450205 | O94: 31.4657509 | P94: 35.54906884 | Q94: 35.42874771 | R94: 33.03273256 | S94: 39.38061374 | T94: 39.92976918
A95: 94 | B95: 3 | C95: 200 | D95: Non-Metallic Mineral Product Manufacturing, nfd | E95: 3.146030972 | F95: 2.769340065 | G95: 2.049882886 | H95: 0.8841979914 | I95: 1.416019701 | J95: 3.087614261 | K95: 3.00479072 | L95: 1.723708492 | M95: 3.630676679 | N95: 2.00434631 | O95: 0.6099166113 | P95: 1.705263293 | Q95: 1.627689389 | R95: 1.619682525 | S95: 1.525629268 | T95: 3.291733667
A96: 95 | B96: 3 | C96: 201 | D96: Glass and Glass Product Manufacturing | E96: 7.986855139 | F96: 10.96926428 | G96: 4.956740748 | H96: 11.48459521 | I96: 5.222059447 | J96: 6.205724623 | K96: 10.46227087 | L96: 6.236363942 | M96: 7.345145715 | N96: 9.052819023 | O96: 7.909760513 | P96: 6.090593346 | Q96: 7.403184318 | R96: 4.225584673 | S96: 7.289562438 | T96: 5.254860636
A97: 96 | B97: 3 | C97: 202 | D97: Ceramic Product Manufacturing | E97: 5.428798729 | F97: 6.015366311 | G97: 6.171035185 | H97: 3.586864629 | I97: 6.028422644 | J97: 6.426676867 | K97: 2.709947202 | L97: 4.11485517 | M97: 4.661904794 | N97: 4.971161842 | O97: 3.995029896 | P97: 5.736111998 | Q97: 3.010686658 | R97: 3.242128348 | S97: 1.972860165 | T97: 2.811768966
A98: 97 | B98: 3 | C98: 203 | D98: Cement, Lime, Plaster and Concrete Product Manufacturing | E98: 11.96963476 | F98: 13.96162622 | G98: 13.8907648 | H98: 15.08554034 | I98: 12.10309704 | J98: 13.96911895 | K98: 9.125703097 | L98: 16.40801316 | M98: 8.700801899 | N98: 7.943207635 | O98: 12.1246419 | P98: 11.0362811 | Q98: 13.3792954 | R98: 15.42644081 | S98: 14.48901519 | T98: 19.38092267
A99: 98 | B99: 3 | C99: 209 | D99: Other Non-Metallic Mineral Product Manufacturing | E99: 8.992087501 | F99: 8.83334006 | G99: 9.227907286 | H99: 9.477175114 | I99: 9.420728787 | J99: 8.896188684 | K99: 9.830433333 | L99: 10.05798583 | M99: 8.739852704 | N99: 7.711359619 | O99: 5.646933575 | P99: 10.1799451 | Q99: 9.577296337 | R99: 8.334185781 | S99: 13.58341637 | T99: 8.961874387
A100: 99 | B100: 2 | C100: 21 | D100: Primary Metal and Metal Product Manufacturing | E100: 83.23288309 | F100: 88.63797504 | G100: 84.59785008 | H100: 93.9028822 | I100: 78.5892619 | J100: 84.96717458 | K100: 94.54693479 | L100: 80.28085665 | M100: 68.81851438 | N100: 81.7483226 | O100: 74.82874388 | P100: 65.52415171 | Q100: 59.87523206 | R100: 59.82915022 | S100: 71.74063204 | T100: 67.70441382
A101: 100 | B101: 3 | C101: 210 | D101: Primary Metal and Metal Product Manufacturing, nfd | E101: 2.38450393 | F101: 2.842603805 | G101: 1.943804865 | H101: 3.496675897 | I101: 1.043985552 | J101: 1.648983819 | K101: 1.042705143 | L101: 1.291791721 | M101: 0.9917200858 | N101: 0.6434687857 | O101: 3.246307398 | P101: 2.438595096 | Q101: 4.258932889 | R101: 2.936522015 | S101: 1.273515731 | T101: 3.720321624
A102: 101 | B102: 3 | C102: 211 | D102: Basic Ferrous Metal Manufacturing | E102: 39.01195894 | F102: 45.00476211 | G102: 40.6508971 | H102: 43.60512114 | I102: 36.66135743 | J102: 41.22933553 | K102: 43.02493468 | L102: 34.82685628 | M102: 27.92846045 | N102: 38.73132439 | O102: 31.8244918 | P102: 29.35583345 | Q102: 26.39467601 | R102: 24.64326016 | S102: 32.85378511 | T102: 23.84496063
A103: 102 | B103: 3 | C103: 212 | D103: Basic Ferrous Metal Product Manufacturing | E103: 2.815228059 | F103: 3.311532838 | G103: 1.932707494 | H103: 4.553733084 | I103: 2.002021275 | J103: 3.701914076 | K103: 2.282314387 | L103: 2.593089326 | M103: 0.4407906271 | N103: 2.254423092 | O103: 1.799314559 | P103: 3.074905119 | Q103: 1.612387769 | R103: 3.903748887 | S103: 6.151213026 | T103: 3.240780099
A104: 103 | B104: 3 | C104: 213 | D104: Basic Non-Ferrous Metal Manufacturing | E104: 26.81214558 | F104: 27.32269873 | G104: 28.86076932 | H104: 30.2257025 | I104: 29.91651619 | J104: 28.39982139 | K104: 32.72938052 | L104: 27.61232788 | M104: 29.25199656 | N104: 29.15362235 | O104: 22.64917208 | P104: 21.99803609 | Q104: 18.43570277 | R104: 17.62628776 | S104: 19.74679894 | T104: 21.59223251
A105: 104 | B105: 3 | C105: 214 | D105: Basic Non-Ferrous Metal Product Manufacturing | E105: 10.15163326 | F105: 7.90938575 | G105: 9.006269414 | H105: 9.882136671 | I105: 6.968245498 | J105: 8.437851416 | K105: 13.61107196 | L105: 12.49707755 | M105: 8.835871196 | N105: 8.978316538 | O105: 13.32558055 | P105: 6.858221697 | Q105: 7.695034978 | R105: 9.36420416 | S105: 9.561452827 | T105: 13.6953267
A106: 105 | B106: 2 | C106: 22 | D106: Fabricated Metal Product Manufacturing | E106: 62.21703825 | F106: 74.49215575 | G106: 64.4813399 | H106: 70.98349417 | I106: 75.92772237 | J106: 62.96075426 | K106: 51.654368 | L106: 51.16885542 | M106: 48.77663082 | N106: 53.07096912 | O106: 44.83099578 | P106: 64.72937468 | Q106: 68.5724747 | R106: 79.11937426 | S106: 69.87304652 | T106: 59.44256667
A107: 106 | B107: 3 | C107: 220 | D107: Fabricated Metal Product Manufacturing, nfd | E107: 1.071433866 | F107: 1.44172752 | G107: 0.5476864895 | H107: 0.6772374947 | I107: 2.563384765 | J107: 1.052064589 | K107: 0.7856490194 | L107: 0.4394627539 | M107: 1.013222566 | N107: 0.7195899624 | O107: 2.616977943 | P107: 1.638324368 | Q107: 1.492376474 | R107: 4.628003599 | S107: 1.528096423 | T107: 5.906766431
A108: 107 | B108: 3 | C108: 221 | D108: Iron and Steel Forging | E108: 0.0939872327 | F108: 0.0929521107 | G108: 0.2912514959 | H108: 1.186843977 | I108: 0.3617559975 | J108: 0.0856778031 | K108: 0.0853913874 | L108: 0.0871937403 | M108: 0.298774222 | N108: 0.9165821208 | O108: 0.0870549647 | P108: 0.0844282142 | Q108: 0.8525761385 | R108: 0.9804272307 | S108: 0.4394554399 | T108: 0.9066373122
A109: 108 | B109: 3 | C109: 222 | D109: Structural Metal Product Manufacturing | E109: 25.57534217 | F109: 32.4750446 | G109: 23.22570338 | H109: 26.41837732 | I109: 29.32275929 | J109: 29.24063178 | K109: 23.78482416 | L109: 22.85569137 | M109: 19.49784206 | N109: 22.11468069 | O109: 15.47858107 | P109: 30.52529853 | Q109: 30.27813308 | R109: 37.56628696 | S109: 37.03260157 | T109: 23.89167251
A110: 109 | B110: 3 | C110: 223 | D110: Metal Container Manufacturing | E110: 6.757586554 | F110: 7.996219348 | G110: 8.206228891 | H110: 9.480648936 | I110: 10.13840262 | J110: 5.352870311 | K110: 5.379263546 | L110: 4.709016316 | M110: 8.941864862 | N110: 5.314161658 | O110: 8.135149118 | P110: 10.53713554 | Q110: 6.825113847 | R110: 10.84033396 | S110: 7.006568067 | T110: 7.705854609
A111: 110 | B111: 3 | C111: 224 | D111: Sheet Metal Product Manufacturing (except Metal Structural and Container Products) | E111: 1.388806435 | F111: 1.906425381 | G111: 1.590553113 | H111: 1.37654955 | I111: 2.229753705 | J111: 1.170926745 | K111: 0.8458409889 | L111: 0.7905712607 | M111: 0.5613699569 | N111: 2.048225142 | O111: 0.8444412241 | P111: 0.8937751413 | Q111: 3.506310148 | R111: 3.493376186 | S111: 1.28922339 | T111: 1.764276929
A112: 111 | B112: 3 | C112: 229 | D112: Other Fabricated Metal Product Manufacturing | E112: 28.41916217 | F112: 32.11508065 | G112: 31.92122495 | H112: 32.72651102 | I112: 31.67228596 | J112: 26.27294527 | K112: 21.12523844 | L112: 22.90852136 | M112: 19.82556609 | N112: 22.93163888 | O112: 19.58595295 | P112: 22.96845877 | Q112: 26.55104558 | R112: 23.90848899 | S112: 23.73874507 | T112: 21.63093611
A113: 112 | B113: 2 | C113: 23 | D113: Transport Equipment Manufacturing | E113: 99.71141524 | F113: 105.5750905 | G113: 106.5406541 | H113: 101.3050029 | I113: 86.53069776 | J113: 82.05756644 | K113: 90.71716952 | L113: 82.4585119 | M113: 68.47677449 | N113: 84.20579575 | O113: 78.01995607 | P113: 69.64426157 | Q113: 78.13659076 | R113: 66.61254352 | S113: 64.91500537 | T113: 70.05999863
A114: 113 | B114: 3 | C114: 230 | D114: Transport Equipment Manufacturing, nfd | E114: 0.8861889568 | F114: 1.341136397 | G114: 1.963109685 | H114: 1.387468805 | I114: 1.306813007 | J114: 1.2758083 | K114: 2.8652894 | L114: 1.111159259 | M114: 2.898946136 | N114: 0.1179853488 | O114: 0.1174833278 | P114: 0.6006584931 | Q114: 1.90182371 | R114: 0.5023120949 | S114: 0.1028063665 | T114: 0.1819917956
A115: 114 | B115: 3 | C115: 231 | D115: Motor Vehicle and Motor Vehicle Part Manufacturing | E115: 68.16917745 | F115: 73.29576834 | G115: 69.16157768 | H115: 62.98498245 | I115: 46.94095364 | J115: 52.17568664 | K115: 51.36072841 | L115: 51.86948763 | M115: 36.80439513 | N115: 53.4016425 | O115: 50.02205473 | P115: 35.91390676 | Q115: 45.03595554 | R115: 31.02492913 | S115: 38.60046347 | T115: 36.63302926
A116: 115 | B116: 3 | C116: 239 | D116: Other Transport Equipment Manufacturing | E116: 30.95185384 | F116: 30.81207877 | G116: 34.98089712 | H116: 36.77252652 | I116: 38.39598168 | J116: 28.80519838 | K116: 36.85295226 | L116: 29.76875157 | M116: 29.11108623 | N116: 30.12248543 | O116: 26.80233121 | P116: 32.24315071 | Q116: 29.97561386 | R116: 34.41969115 | S116: 25.57263931 | T116: 32.78496085
A117: 116 | B117: 2 | C117: 24 | D117: Machinery and Equipment Manufacturing | E117: 96.09891416 | F117: 112.7984862 | G117: 114.4357174 | H117: 108.3467142 | I117: 121.651451 | J117: 118.9486457 | K117: 103.9998706 | L117: 120.1927789 | M117: 128.2864273 | N117: 108.0372983 | O117: 110.0682084 | P117: 126.4918499 | Q117: 96.01158094 | R117: 131.984715 | S117: 121.4640036 | T117: 115.0035507
A118: 117 | B118: 3 | C118: 240 | D118: Machinery and Equipment Manufacturing, nfd | E118: 10.45591596 | F118: 13.29138528 | G118: 13.10287918 | H118: 10.90361264 | I118: 11.93785149 | J118: 15.09327308 | K118: 17.49681057 | L118: 18.12488063 | M118: 16.44430118 | N118: 11.6871186 | O118: 10.84852708 | P118: 19.36605975 | Q118: 8.206450528 | R118: 8.629827351 | S118: 8.834492531 | T118: 6.35335912
A119: 118 | B119: 3 | C119: 241 | D119: Professional and Scientific Equipment Manufacturing | E119: 12.02792091 | F119: 14.49712723 | G119: 14.01459164 | H119: 20.35061545 | I119: 18.1298341 | J119: 24.32107339 | K119: 16.0287877 | L119: 13.72842994 | M119: 19.733573 | N119: 19.58594601 | O119: 16.73974434 | P119: 26.06857888 | Q119: 15.95879016 | R119: 19.31968261 | S119: 24.15038089 | T119: 19.96097819
A120: 119 | B120: 3 | C120: 242 | D120: Computer and Electronic Equipment Manufacturing | E120: 21.44477612 | F120: 20.28726786 | G120: 23.00911074 | H120: 16.95455768 | I120: 29.55097551 | J120: 16.29476081 | K120: 15.10475683 | L120: 15.59431769 | M120: 21.1993461 | N120: 17.3627788 | O120: 13.82517693 | P120: 17.40037083 | Q120: 12.85494057 | R120: 15.77704571 | S120: 14.66149018 | T120: 12.00186093
A121: 120 | B121: 3 | C121: 243 | D121: Electrical Equipment Manufacturing | E121: 15.78503693 | F121: 15.31018597 | G121: 18.06111304 | H121: 13.88738221 | I121: 13.66304115 | J121: 18.5878975 | K121: 12.40777974 | L121: 14.27021198 | M121: 18.07444969 | N121: 15.4497388 | O121: 13.97933982 | P121: 13.44717647 | Q121: 10.82679576 | R121: 20.65015222 | S121: 15.83603644 | T121: 14.94955323
A122: 121 | B122: 3 | C122: 244 | D122: Domestic Appliance Manufacturing | E122: 6.795341797 | F122: 6.517088349 | G122: 7.168590153 | H122: 6.642190023 | I122: 9.14591487 | J122: 5.266672719 | K122: 5.151473068 | L122: 6.3767467 | M122: 4.117740003 | N122: 4.420425152 | O122: 3.134305785 | P122: 5.510975358 | Q122: 7.252813329 | R122: 6.696125439 | S122: 10.62235736 | T122: 4.641253333
A123: 122 | B123: 3 | C123: 245 | D123: Pump, Compressor, Heating and Ventilation Equipment Manufacturing | E123: 3.031879135 | F123: 4.401281757 | G123: 6.035094736 | H123: 5.0185711 | I123: 4.659327791 | J123: 6.54541796 | K123: 3.413920535 | L123: 5.445491014 | M123: 6.677316399 | N123: 4.072695114 | O123: 5.963863361 | P123: 7.292997448 | Q123: 5.703952488 | R123: 6.340975711 | S123: 4.874769945 | T123: 7.608566339
A124: 123 | B124: 3 | C124: 246 | D124: Specialised Machinery and Equipment Manufacturing | E124: 15.42245699 | F124: 22.41567666 | G124: 18.99669694 | H124: 19.44396442 | I124: 20.69418909 | J124: 19.72074564 | K124: 23.94404726 | L124: 33.65530701 | M124: 29.07082284 | N124: 23.67230826 | O124: 25.79521726 | P124: 19.91309293 | Q124: 19.22002683 | R124: 31.07500547 | S124: 20.86612555 | T124: 30.54548205
A125: 124 | B125: 3 | C125: 249 | D125: Other Machinery and Equipment Manufacturing | E125: 12.16751926 | F125: 17.59237079 | G125: 15.99759867 | H125: 17.17727208 | I125: 16.73528591 | J125: 16.0254338 | K125: 12.49681772 | L125: 14.53332272 | M125: 14.42358561 | N125: 12.81076372 | O125: 20.99831601 | P125: 18.6745757 | Q125: 16.58123379 | R125: 25.2755264 | S125: 23.54690874 | T125: 19.87276205
A126: 125 | B126: 2 | C126: 25 | D126: Furniture and Other Manufacturing | E126: 66.23233857 | F126: 63.9527075 | G126: 51.39090033 | H126: 64.5064089 | I126: 67.96048456 | J126: 65.21792368 | K126: 50.18139883 | L126: 52.79366843 | M126: 50.19908373 | N126: 58.56044769 | O126: 49.56509686 | P126: 59.83527427 | Q126: 77.35685424 | R126: 69.56289141 | S126: 66.73889085 | T126: 69.91703337
A127: 126 | B127: 3 | C127: 250 | D127: Furniture and Other Manufacturing, nfd | E127: 0.0998311831 | F127: 0.0998741782 | G127: 0.099955795 | H127: 0.1015659901 | I127: 0.1022225099 | J127: 0.1045180077 | K127: 0.1033706685 | L127: 0.1032842758 | M127: 0.1011606296 | N127: 0.1022642841 | O127: 0.1053695634 | P127: 0.1098172662 | Q127: 0.1119166941 | R127: 3.359925215 | S127: 0.4818741458 | T127: 0.4428022925
A128: 127 | B128: 3 | C128: 251 | D128: Furniture Manufacturing | E128: 55.30541591 | F128: 53.37535442 | G128: 38.91793688 | H128: 50.42325496 | I128: 54.58030956 | J128: 50.52798476 | K128: 37.49453906 | L128: 35.40299006 | M128: 36.78196405 | N128: 47.80325959 | O128: 36.68786713 | P128: 45.86939522 | Q128: 50.53482586 | R128: 38.8484365 | S128: 42.66321969 | T128: 44.91098753
A129: 128 | B129: 3 | C129: 259 | D129: Other Manufacturing | E129: 10.6223336 | F129: 10.27537288 | G129: 12.31978332 | H129: 13.76246205 | I129: 12.93561238 | J129: 13.92068872 | K129: 11.97850121 | L129: 16.14033484 | M129: 12.21297755 | N129: 9.466665471 | O129: 11.78577321 | P129: 13.21525547 | Q129: 26.24523426 | R129: 27.52465927 | S129: 24.15965912 | T129: 25.52101959
A130: 129 | B130: 2 | C130: C0 | D130: Manufacturing, nfd | E130: 92.52967471 | F130: 65.60829095 | G130: 70.36854662 | H130: 92.59384031 | I130: 73.47458517 | J130: 65.30890511 | K130: 76.37687636 | L130: 69.31773157 | M130: 83.26110846 | N130: 61.47346679 | O130: 56.15484867 | P130: 32.71514237 | Q130: 33.93799103 | R130: 6.81328963 | S130: 3.394359873 | T130: 3.9050904
A131: 130 | B131: 3 | C131: C00 | D131: Manufacturing, nfd | E131: 92.52967471 | F131: 65.60829095 | G131: 70.36854662 | H131: 92.59384031 | I131: 73.47458517 | J131: 65.30890511 | K131: 76.37687636 | L131: 69.31773157 | M131: 83.26110846 | N131: 61.47346679 | O131: 56.15484867 | P131: 32.71514237 | Q131: 33.93799103 | R131: 6.81328963 | S131: 3.394359873 | T131: 3.9050904
A132: 131 | B132: 1 | C132: D | D132: Electricity, Gas, Water and Waste Services | E132: 95.4846212 | F132: 107.0870974 | G132: 103.4069783 | H132: 120.5521541 | I132: 131.5020785 | J132: 136.6316568 | K132: 147.2280209 | L132: 153.0187051 | M132: 146.2728675 | N132: 143.1262151 | O132: 139.0903394 | P132: 134.659876 | Q132: 138.4111764 | R132: 149.2912871 | S132: 156.2127067 | T132: 164.6060145
A133: 132 | B133: 2 | C133: 26 | D133: Electricity Supply | E133: 43.84420094 | F133: 50.00898708 | G133: 40.51234329 | H133: 44.6912975 | I133: 55.74212143 | J133: 59.54432855 | K133: 66.14544562 | L133: 65.97539253 | M133: 66.48509771 | N133: 62.51495926 | O133: 61.47214443 | P133: 60.74652895 | Q133: 58.5189899 | R133: 66.24699037 | S133: 65.68203607 | T133: 84.70450523
A134: 133 | B134: 3 | C134: 260 | D134: Electricity Supply, nfd | E134: 0.0809391914 | F134: 0.0813113935 | G134: 0.0814024521 | H134: 11.58307011 | I134: 16.96580483 | J134: 25.95717677 | K134: 26.36348303 | L134: 26.20674857 | M134: 39.50526469 | N134: 29.71926362 | O134: 28.97018767 | P134: 25.40848597 | Q134: 19.96458761 | R134: 26.28061451 | S134: 19.95811225 | T134: 23.81371088
A135: 134 | B135: 3 | C135: 261 | D135: Electricity Generation | E135: 13.30703115 | F135: 15.5358743 | G135: 13.23908502 | H135: 8.919000763 | I135: 11.48990941 | J135: 12.8792005 | K135: 15.73736161 | L135: 18.11424918 | M135: 13.62651249 | N135: 11.85628375 | O135: 9.430685908 | P135: 14.44819349 | Q135: 12.63810661 | R135: 12.40855596 | S135: 14.05426107 | T135: 18.21880646
A136: 135 | B136: 3 | C136: 262 | D136: Electricity Transmission | E136: 14.09037894 | F136: 15.88548612 | G136: 9.191008745 | H136: 7.020477401 | I136: 0.7613609623 | J136: 1.971201274 | K136: 3.584025293 | L136: 1.200868404 | M136: 2.165207738 | N136: 1.51402068 | O136: 4.287641381 | P136: 1.006752841 | Q136: 2.455089322 | R136: 2.016815322 | S136: 2.620602114 | T136: 4.854244683
A137: 136 | B137: 3 | C137: 263 | D137: Electricity Distribution | E137: 17.08728568 | F137: 19.36669796 | G137: 18.77253016 | H137: 14.93684032 | I137: 22.27777067 | J137: 12.98460203 | K137: 13.72261767 | L137: 16.59502421 | M137: 10.1975294 | N137: 17.32768662 | O137: 18.92154642 | P137: 16.77451634 | Q137: 18.75102917 | R137: 23.12452082 | S137: 17.95151218 | T137: 27.06327232
A138: 137 | B138: 3 | C138: 264 | D138: On Selling Electricity and Electricity Market Operation | E138: 0.0939554683 | F138: 0.0907770294 | G138: 0.0895768564 | H138: 0.7127351082 | I138: 1.53078611 | J138: 1.365519222 | K138: 3.757567765 | L138: 2.548398079 | M138: 2.381795802 | N138: 3.047576966 | O138: 0.926122559 | P138: 3.355191857 | Q138: 4.942233704 | R138: 2.888162178 | S138: 11.26847635 | T138: 11.7864631
A139: 138 | B139: 2 | C139: 27 | D139: Gas Supply | E139: 3.685935535 | F139: 7.480946842 | G139: 10.02301371 | H139: 8.770560989 | I139: 9.360739184 | J139: 8.904066232 | K139: 11.22138501 | L139: 11.62092446 | M139: 10.47981276 | N139: 18.05916037 | O139: 14.23172928 | P139: 14.2246025 | Q139: 13.20936225 | R139: 12.6076582 | S139: 8.47186638 | T139: 14.48263778
A140: 139 | B140: 3 | C140: 270 | D140: Gas Supply | E140: 3.685935535 | F140: 7.480946842 | G140: 10.02301371 | H140: 8.770560989 | I140: 9.360739184 | J140: 8.904066232 | K140: 11.22138501 | L140: 11.62092446 | M140: 10.47981276 | N140: 18.05916037 | O140: 14.23172928 | P140: 14.2246025 | Q140: 13.20936225 | R140: 12.6076582 | S140: 8.47186638 | T140: 14.48263778
A141: 140 | B141: 2 | C141: 28 | D141: Water Supply, Sewerage and Drainage Services | E141: 25.62353662 | F141: 28.22348024 | G141: 30.75777352 | H141: 35.44134646 | I141: 34.71765221 | J141: 34.76428426 | K141: 36.36459221 | L141: 41.6043195 | M141: 32.19466946 | N141: 31.24111222 | O141: 27.62622707 | P141: 27.13457451 | Q141: 33.37535434 | R141: 34.99682193 | S141: 38.32562448 | T141: 31.12707828
A142: 141 | B142: 3 | C142: 281 | D142: Water Supply, Sewerage and Drainage Services | E142: 25.62353662 | F142: 28.22348024 | G142: 30.75777352 | H142: 35.44134646 | I142: 34.71765221 | J142: 34.76428426 | K142: 36.36459221 | L142: 41.6043195 | M142: 32.19466946 | N142: 31.24111222 | O142: 27.62622707 | P142: 27.13457451 | Q142: 33.37535434 | R142: 34.99682193 | S142: 38.32562448 | T142: 31.12707828
A143: 142 | B143: 2 | C143: 29 | D143: Waste Collection, Treatment and Disposal Services | E143: 18.48340604 | F143: 17.54801514 | G143: 17.29900714 | H143: 26.56295781 | I143: 27.69456036 | J143: 28.91738356 | K143: 28.4676334 | L143: 27.97451681 | M143: 29.56012865 | N143: 28.44944807 | O143: 33.54002328 | P143: 33.54543412 | Q143: 33.39378256 | R143: 36.57376738 | S143: 44.16321354 | T143: 34.01733181
A144: 143 | B144: 3 | C144: 290 | D144: Waste Collection, Treatment and Disposal Services, nfd | E144: 6.742211945 | F144: 6.619824918 | G144: 4.850535699 | H144: 3.084686419 | I144: 3.244122838 | J144: 4.031702712 | K144: 2.392837674 | L144: 3.887396743 | M144: 3.921990629 | N144: 1.788944663 | O144: 6.232333896 | P144: 4.58029851 | Q144: 1.601554981 | R144: 3.961393915 | S144: 5.115500738 | T144: 4.493507502
A145: 144 | B145: 3 | C145: 291 | D145: Waste Collection Services | E145: 12.54949036 | F145: 11.92240874 | G145: 11.8782799 | H145: 17.84172479 | I145: 14.03494276 | J145: 16.44597575 | K145: 17.04082676 | L145: 16.88433586 | M145: 19.54862556 | N145: 19.54422849 | O145: 17.48244494 | P145: 16.36631407 | Q145: 19.45339353 | R145: 22.67682633 | S145: 23.2590977 | T145: 20.28428486
A146: 145 | B146: 3 | C146: 292 | D146: Waste Treatment, Disposal and Remediation Services | E146: 0.0961528141 | F146: 0.0952726172 | G146: 1.43948029 | H146: 6.436780544 | I146: 11.09902664 | J146: 9.098512821 | K146: 9.160731971 | L146: 7.311856868 | M146: 6.070524928 | N146: 7.044488651 | O146: 9.616400438 | P146: 12.37517575 | Q146: 12.03944248 | R146: 9.714111683 | S146: 15.21009159 | T146: 8.832979142
A147: 146 | B147: 2 | C147: D0 | D147: Electricity, Gas, Water and Waste Services, nfd | E147: 3.54152508 | F147: 3.568330171 | G147: 4.602035098 | H147: 4.172421668 | I147: 2.024312565 | J147: 1.869763099 | K147: 1.798781532 | L147: 2.535244103 | M147: 5.223146027 | N147: 2.371903376 | O147: 2.781364434 | P147: 0.0716365973 | Q147: 1.48718602 | R147: 0.1015550549 | S147: 0.5488594875 | T147: 0.0999662659
A148: 147 | B148: 3 | C148: D00 | D148: Electricity, Gas, Water and Waste Services, nfd | E148: 3.54152508 | F148: 3.568330171 | G148: 4.602035098 | H148: 4.172421668 | I148: 2.024312565 | J148: 1.869763099 | K148: 1.798781532 | L148: 2.535244103 | M148: 5.223146027 | N148: 2.371903376 | O148: 2.781364434 | P148: 0.0716365973 | Q148: 1.48718602 | R148: 0.1015550549 | S148: 0.5488594875 | T148: 0.0999662659
A149: 148 | B149: 1 | C149: E | D149: Construction | E149: 839.8443184 | F149: 875.0453969 | G149: 926.147688 | H149: 970.334224 | I149: 981.5040249 | J149: 992.0818965 | K149: 1018.69074 | L149: 971.3655633 | M149: 977.5880195 | N149: 1015.112381 | O149: 1030.341753 | P149: 1079.320964 | Q149: 1123.467574 | R149: 1170.518314 | S149: 1175.680132 | T149: 1174.060168
A150: 149 | B150: 2 | C150: 30 | D150: Building Construction | E150: 202.1116162 | F150: 204.9394309 | G150: 210.4804287 | H150: 244.1733781 | I150: 229.005881 | J150: 238.0244142 | K150: 234.1108964 | L150: 211.8597368 | M150: 219.8163339 | N150: 240.9521977 | O150: 261.660335 | P150: 285.115716 | Q150: 278.1658057 | R150: 316.4821146 | S150: 312.3300881 | T150: 337.7123423
A151: 150 | B151: 3 | C151: 300 | D151: Building Construction, nfd | E151: 97.87541136 | F151: 99.14695515 | G151: 103.2757387 | H151: 116.8673065 | I151: 111.2856221 | J151: 119.1581651 | K151: 109.6144248 | L151: 100.6402753 | M151: 102.5088727 | N151: 119.8094514 | O151: 132.0933535 | P151: 133.523357 | Q151: 118.8680609 | R151: 114.9982902 | S151: 102.3449249 | T151: 145.5266598
A152: 151 | B152: 3 | C152: 301 | D152: Residential Building Construction | E152: 68.13066153 | F152: 69.56085536 | G152: 69.7372815 | H152: 89.97427592 | I152: 74.80124781 | J152: 85.20534658 | K152: 89.58367867 | L152: 73.39330148 | M152: 82.65332772 | N152: 85.22208305 | O152: 93.51174037 | P152: 109.0640546 | Q152: 107.1559853 | R152: 134.2655196 | S152: 142.4255761 | T152: 132.6761957
A153: 152 | B153: 3 | C153: 302 | D153: Non-Residential Building Construction | E153: 39.15333223 | F153: 39.7495601 | G153: 41.58131492 | H153: 42.30664771 | I153: 47.02512348 | J153: 37.65934017 | K153: 38.08535972 | L153: 39.48813804 | M153: 35.27809232 | N153: 35.7090282 | O153: 35.66293426 | P153: 42.5446874 | Q153: 52.89416021 | R153: 67.94865945 | S153: 68.051011 | T153: 63.33286227
A154: 153 | B154: 2 | C154: 31 | D154: Heavy and Civil Engineering Construction | E154: 57.03801325 | F154: 48.07022925 | G154: 72.12937146 | H154: 58.61410348 | I154: 68.9719272 | J154: 70.14817263 | K154: 69.05332778 | L154: 64.92621176 | M154: 61.19553825 | N154: 84.90585271 | O154: 71.16853101 | P154: 74.14085798 | Q154: 79.70439053 | R154: 113.1998841 | S154: 106.2078192 | T154: 110.129863
A155: 154 | B155: 3 | C155: 310 | D155: Heavy and Civil Engineering Construction | E155: 57.03801325 | F155: 48.07022925 | G155: 72.12937146 | H155: 58.61410348 | I155: 68.9719272 | J155: 70.14817263 | K155: 69.05332778 | L155: 64.92621176 | M155: 61.19553825 | N155: 84.90585271 | O155: 71.16853101 | P155: 74.14085798 | Q155: 79.70439053 | R155: 113.1998841 | S155: 106.2078192 | T155: 110.129863
A156: 155 | B156: 2 | C156: 32 | D156: Construction Services | E156: 565.6386838 | F156: 605.9855485 | G156: 618.539943 | H156: 651.940934 | I156: 644.0271465 | J156: 655.7834086 | K156: 680.0500288 | L156: 652.1915616 | M156: 647.8224471 | N156: 651.7456998 | O156: 672.6366051 | P156: 703.6741778 | Q156: 750.7576127 | R156: 738.9994094 | S156: 756.2541086 | T156: 724.9487509
A157: 156 | B157: 3 | C157: 320 | D157: Construction Services, nfd | E157: 4.527379567 | F157: 3.766294263 | G157: 7.427078681 | H157: 2.979077694 | I157: 5.895304818 | J157: 4.544063235 | K157: 5.467437074 | L157: 6.249417866 | M157: 7.089833248 | N157: 6.326397111 | O157: 11.46974363 | P157: 5.651536377 | Q157: 14.07573147 | R157: 5.911176895 | S157: 5.725870949 | T157: 5.354155416
A158: 157 | B158: 3 | C158: 321 | D158: Land Development and Site Preparation Services | E158: 42.23303413 | F158: 49.54965643 | G158: 47.30157666 | H158: 51.83045772 | I158: 46.44747631 | J158: 58.64969542 | K158: 45.90992664 | L158: 46.84706571 | M158: 53.30087877 | N158: 52.36660702 | O158: 49.30055317 | P158: 47.79010048 | Q158: 57.56711929 | R158: 55.85233894 | S158: 57.08468662 | T158: 50.88343304
A159: 158 | B159: 3 | C159: 322 | D159: Building Structure Services | E159: 89.90977423 | F159: 85.15572437 | G159: 82.14915659 | H159: 94.86766652 | I159: 93.18803113 | J159: 87.54232324 | K159: 92.51683218 | L159: 87.18295074 | M159: 90.63684971 | N159: 73.67619019 | O159: 78.09592054 | P159: 91.77867648 | Q159: 97.48450237 | R159: 101.7634976 | S159: 106.2884907 | T159: 97.30709307
A160: 159 | B160: 3 | C160: 323 | D160: Building Installation Services | E160: 168.7828869 | F160: 177.9807617 | G160: 207.4920734 | H160: 207.7843173 | I160: 222.9249219 | J160: 230.8064203 | K160: 236.1555527 | L160: 241.9168541 | M160: 235.4122567 | N160: 224.3619188 | O160: 245.0728549 | P160: 248.2244156 | Q160: 246.8140501 | R160: 251.5867204 | S160: 260.807771 | T160: 258.9430688
A161: 160 | B161: 3 | C161: 324 | D161: Building Completion Services | E161: 182.3657823 | F161: 190.8439258 | G161: 180.690866 | H161: 201.717402 | I161: 187.3655852 | J161: 179.7616079 | K161: 196.2770957 | L161: 185.5146523 | M161: 173.0360488 | N161: 184.0727618 | O161: 185.7032079 | P161: 206.351672 | Q161: 218.4732044 | R161: 202.2630191 | S161: 210.4092834 | T161: 190.3986308
A162: 161 | B162: 3 | C162: 329 | D162: Other Construction Services | E162: 76.23158237 | F162: 96.11120983 | G162: 90.51624253 | H162: 89.56749663 | I162: 86.22264146 | J162: 92.93838563 | K162: 103.6580747 | L162: 84.69770472 | M162: 89.24794372 | N162: 111.4926836 | O162: 102.7267963 | P162: 103.957096 | Q162: 115.6374994 | R162: 120.1891509 | S162: 114.2914936 | T162: 119.8923149
A163: 162 | B163: 2 | C163: E0 | D163: Construction, nfd | E163: 20.20559134 | F163: 18.66194107 | G163: 25.04779574 | H163: 14.45354135 | I163: 37.37925516 | J163: 26.77412814 | K163: 35.36991316 | L163: 44.01575979 | M163: 51.27625992 | N163: 39.85291306 | O163: 25.71080025 | P163: 16.25079331 | Q163: 14.56640747 | R163: 0.2177808098 | S163: 0.6833875188 | T163: 1.331003189
A164: 163 | B164: 3 | C164: E00 | D164: Construction, nfd | E164: 20.20559134 | F164: 18.66194107 | G164: 25.04779574 | H164: 14.45354135 | I164: 37.37925516 | J164: 26.77412814 | K164: 35.36991316 | L164: 44.01575979 | M164: 51.27625992 | N164: 39.85291306 | O164: 25.71080025 | P164: 16.25079331 | Q164: 14.56640747 | R164: 0.2177808098 | S164: 0.6833875188 | T164: 1.331003189
A165: 164 | B165: 1 | C165: F | D165: Wholesale Trade | E165: 363.1707238 | F165: 389.5017082 | G165: 406.1729051 | H165: 400.7993606 | I165: 404.5136614 | J165: 407.502821 | K165: 394.5109716 | L165: 402.6369738 | M165: 428.478785 | N165: 386.8376038 | O165: 396.7372425 | P165: 382.5979101 | Q165: 349.1299254 | R165: 360.8291182 | S165: 405.4173864 | T165: 390.3575828
A166: 165 | B166: 2 | C166: 33 | D166: Basic Material Wholesaling | E166: 85.76496288 | F166: 96.85102885 | G166: 104.5016048 | H166: 97.9683123 | I166: 92.65548464 | J166: 98.30155181 | K166: 86.66164947 | L166: 95.25337051 | M166: 105.925294 | N166: 85.12688105 | O166: 88.78579715 | P166: 91.62099154 | Q166: 97.73765261 | R166: 88.66895418 | S166: 97.21773574 | T166: 85.67446706
A167: 166 | B167: 3 | C167: 330 | D167: Basic Material Wholesaling, nfd | E167: 0.3349994765 | F167: 0.6385224447 | G167: 0.7522814974 | H167: 0.115325515 | I167: 1.186584856 | J167: 1.437760753 | K167: 1.777169232 | L167: 1.070402918 | M167: 0.626943997 | N167: 1.268182259 | O167: 1.780548432 | P167: 1.142573666 | Q167: 0.4950536979 | R167: 1.444006189 | S167: 0.5440954393 | T167: 0.3883294451
A168: 167 | B168: 3 | C168: 331 | D168: Agricultural Product Wholesaling | E168: 19.18802151 | F168: 21.08371737 | G168: 23.37434634 | H168: 23.29453806 | I168: 25.7272594 | J168: 21.29736511 | K168: 18.35352766 | L168: 20.18203069 | M168: 24.16249873 | N168: 16.32205561 | O168: 17.15419585 | P168: 19.44225787 | Q168: 21.8291296 | R168: 15.47282724 | S168: 20.81328995 | T168: 18.45040573
A169: 168 | B169: 3 | C169: 332 | D169: Mineral, Metal and Chemical Wholesaling | E169: 29.19579651 | F169: 34.89286189 | G169: 35.16860167 | H169: 31.65166317 | I169: 27.00554175 | J169: 28.67563526 | K169: 31.99892396 | L169: 27.85257915 | M169: 31.13999249 | N169: 28.90553336 | O169: 26.98118987 | P169: 31.80866337 | Q169: 32.96709115 | R169: 29.07948487 | S169: 33.51683454 | T169: 28.27886466
A170: 169 | B170: 3 | C170: 333 | D170: Timber and Hardware Goods Wholesaling | E170: 37.21159519 | F170: 40.3658638 | G170: 45.32596133 | H170: 43.40836137 | I170: 39.54633772 | J170: 46.99958675 | K170: 34.82101039 | L170: 46.15092165 | M170: 50.14718743 | N170: 38.47327483 | O170: 42.89603728 | P170: 39.82131876 | Q170: 42.62308424 | R170: 41.9191101 | S170: 41.70146752 | T170: 37.87293755
A171: 170 | B171: 2 | C171: 34 | D171: Machinery and Equipment Wholesaling | E171: 72.4298308 | F171: 79.16393412 | G171: 84.26497396 | H171: 84.01372331 | I171: 96.06314585 | J171: 95.51860961 | K171: 104.5380291 | L171: 108.4396287 | M171: 106.7502535 | N171: 101.3152435 | O171: 104.3276567 | P171: 107.1656053 | Q171: 76.51125874 | R171: 89.44964835 | S171: 118.4684794 | T171: 116.9786165
A172: 171 | B172: 3 | C172: 340 | D172: Machinery and Equipment Wholesaling, nfd | E172: 2.903810016 | F172: 2.582670478 | G172: 3.288541715 | H172: 3.631723883 | I172: 3.37448858 | J172: 1.017311586 | K172: 3.412112758 | L172: 4.6682814 | M172: 5.707326779 | N172: 2.850691605 | O172: 5.719577668 | P172: 3.516480288 | Q172: 0.5015724002 | R172: 2.717323851 | S172: 0.5703138804 | T172: 7.659747564
A173: 172 | B173: 3 | C173: 341 | D173: Specialised Industrial Machinery and Equipment Wholesaling | E173: 9.289011622 | F173: 10.05278189 | G173: 9.660822423 | H173: 16.60790282 | I173: 25.29499466 | J173: 21.54164557 | K173: 25.73185971 | L173: 22.86969525 | M173: 31.32666721 | N173: 28.75086091 | O173: 23.43506151 | P173: 23.23822167 | Q173: 22.56583684 | R173: 23.64230503 | S173: 32.23138113 | T173: 42.9788682
A174: 173 | B174: 3 | C174: 349 | D174: Other Machinery and Equipment Wholesaling | E174: 60.47977797 | F174: 66.78980769 | G174: 71.46808738 | H174: 63.89317283 | I174: 67.51942432 | J174: 73.30533781 | K174: 75.63890854 | L174: 81.01578339 | M174: 69.00312769 | N174: 68.7111008 | O174: 74.42637503 | P174: 79.57509882 | Q174: 52.63168091 | R174: 62.6276039 | S174: 84.2147355 | T174: 67.45899493
A175: 174 | B175: 2 | C175: 35 | D175: Motor Vehicle and Motor Vehicle Parts Wholesaling | E175: 22.78007644 | F175: 26.12974818 | G175: 25.64888685 | H175: 28.85529572 | I175: 22.68280877 | J175: 24.26673678 | K175: 23.39472911 | L175: 22.53482695 | M175: 23.48450733 | N175: 26.29274165 | O175: 31.16634672 | P175: 22.01027287 | Q175: 22.37164589 | R175: 16.48820253 | S175: 28.57517682 | T175: 25.92903679
A176: 175 | B176: 3 | C176: 350 | D176: Motor Vehicle and Motor Vehicle Parts Wholesaling | E176: 22.78007644 | F176: 26.12974818 | G176: 25.64888685 | H176: 28.85529572 | I176: 22.68280877 | J176: 24.26673678 | K176: 23.39472911 | L176: 22.53482695 | M176: 23.48450733 | N176: 26.29274165 | O176: 31.16634672 | P176: 22.01027287 | Q176: 22.37164589 | R176: 16.48820253 | S176: 28.57517682 | T176: 25.92903679
A177: 176 | B177: 2 | C177: 36 | D177: Grocery, Liquor and Tobacco Product Wholesaling | E177: 55.81395678 | F177: 60.36629725 | G177: 66.29827706 | H177: 58.56868339 | I177: 73.05484917 | J177: 64.38717378 | K177: 62.48174165 | L177: 64.98923308 | M177: 67.17066347 | N177: 56.9996461 | O177: 59.16598675 | P177: 62.04009189 | Q177: 64.5218185 | R177: 65.92577583 | S177: 68.02531207 | T177: 63.57401664
A178: 177 | B178: 3 | C178: 360 | D178: Grocery, Liquor and Tobacco Product Wholesaling | E178: 55.81395678 | F178: 60.36629725 | G178: 66.29827706 | H178: 58.56868339 | I178: 73.05484917 | J178: 64.38717378 | K178: 62.48174165 | L178: 64.98923308 | M178: 67.17066347 | N178: 56.9996461 | O178: 59.16598675 | P178: 62.04009189 | Q178: 64.5218185 | R178: 65.92577583 | S178: 68.02531207 | T178: 63.57401664
A179: 178 | B179: 2 | C179: 37 | D179: Other Goods Wholesaling | E179: 80.2389183 | F179: 81.19807246 | G179: 89.44175633 | H179: 81.59736535 | I179: 83.54262703 | J179: 89.64610114 | K179: 84.68503824 | L179: 82.76436097 | M179: 86.353449 | N179: 81.06304079 | O179: 79.93782942 | P179: 72.94734021 | Q179: 72.55483241 | R179: 89.03659462 | S179: 86.09508634 | T179: 91.46770694
A180: 179 | B180: 3 | C180: 370 | D180: Other Goods Wholesaling, nfd | E180: 0.3031411845 | F180: 0.1089904671 | G180: 0.1096084714 | H180: 0.900674804 | I180: 0.1136488674 | J180: 0.5351307429 | K180: 0.382517838 | L180: 0.1234334287 | M180: 0.4282291561 | N180: 0.86808097 | O180: 0.0912479222 | P180: 0.3322586377 | Q180: 3.335247887 | R180: 3.665357648 | S180: 2.861067304 | T180: 3.954668212
A181: 180 | B181: 3 | C181: 371 | D181: Textile, Clothing and Footwear Wholesaling | E181: 18.80324519 | F181: 17.54119306 | G181: 19.77194096 | H181: 13.04964601 | I181: 19.5996883 | J181: 18.66069175 | K181: 20.39874584 | L181: 18.62741937 | M181: 11.25745917 | N181: 15.67959522 | O181: 9.986617945 | P181: 17.70229311 | Q181: 19.02035315 | R181: 12.83570074 | S181: 17.29683135 | T181: 15.71789107
A182: 181 | B182: 3 | C182: 372 | D182: Pharmaceutical and Toiletry Goods Wholesaling | E182: 18.12491364 | F182: 18.03344339 | G182: 19.04545158 | H182: 22.35371429 | I182: 21.19383685 | J182: 22.43879894 | K182: 19.93526729 | L182: 13.95126991 | M182: 26.14172025 | N182: 22.18053075 | O182: 19.09260517 | P182: 17.91557871 | Q182: 19.57120225 | R182: 25.68519898 | S182: 24.64643058 | T182: 29.01449089
A183: 182 | B183: 3 | C183: 373 | D183: Furniture, Floor Covering and Other Goods Wholesaling | E183: 42.87034329 | F183: 45.26623105 | G183: 50.30226172 | H183: 45.13933278 | I183: 42.51454964 | J183: 47.70676141 | K183: 43.19456953 | L183: 50.11415794 | M183: 48.03918073 | N183: 42.59394633 | O183: 52.64601087 | P183: 38.32182307 | Q183: 30.58364799 | R183: 48.09311063 | S183: 41.71848065 | T183: 43.51450721
A184: 183 | B184: 2 | C184: 38 | D184: Commission-Based Wholesaling | E184: 3.216733631 | F184: 3.570106197 | G184: 6.37111639 | H184: 8.368470041 | I184: 8.09121049 | J184: 11.18110296 | K184: 7.410884471 | L184: 7.022899959 | M184: 7.43969661 | N184: 6.306724484 | O184: 6.654799186 | P184: 7.175889499 | Q184: 4.953698336 | R184: 10.45116961 | S184: 7.369762699 | T184: 8.007296294
A185: 184 | B185: 3 | C185: 380 | D185: Commission-Based Wholesaling | E185: 3.216733631 | F185: 3.570106197 | G185: 6.37111639 | H185: 8.368470041 | I185: 8.09121049 | J185: 11.18110296 | K185: 7.410884471 | L185: 7.022899959 | M185: 7.43969661 | N185: 6.306724484 | O185: 6.654799186 | P185: 7.175889499 | Q185: 4.953698336 | R185: 10.45116961 | S185: 7.369762699 | T185: 8.007296294
A186: 185 | B186: 2 | C186: F0 | D186: Wholesale Trade, nfd | E186: 44.93834488 | F186: 42.25076902 | G186: 27.61082987 | H186: 39.6859411 | I186: 25.9608339 | J186: 23.38460638 | K186: 26.13582776 | L186: 22.58633596 | M186: 32.47037812 | N186: 30.49185218 | O186: 26.16711938 | P186: 18.64491063 | Q186: 9.752509797 | R186: 1.414364232 | S186: 0.7183846473 | T186: 0.093805867
A187: 186 | B187: 3 | C187: F00 | D187: Wholesale Trade, nfd | E187: 44.93834488 | F187: 42.25076902 | G187: 27.61082987 | H187: 39.6859411 | I187: 25.9608339 | J187: 23.38460638 | K187: 26.13582776 | L187: 22.58633596 | M187: 32.47037812 | N187: 30.49185218 | O187: 26.16711938 | P187: 18.64491063 | Q187: 9.752509797 | R187: 1.414364232 | S187: 0.7183846473 | T187: 0.093805867
A188: 187 | B188: 1 | C188: G | D188: Retail Trade | E188: 1181.83993 | F188: 1158.064881 | G188: 1170.328336 | H188: 1226.000999 | I188: 1208.073393 | J188: 1176.058024 | K188: 1206.39087 | L188: 1197.939725 | M188: 1245.660066 | N188: 1242.977644 | O188: 1222.936841 | P188: 1256.527889 | Q188: 1276.574431 | R188: 1276.589992 | S188: 1298.394301 | T188: 1189.094987
A189: 188 | B189: 2 | C189: 39 | D189: Motor Vehicle and Motor Vehicle Parts Retailing | E189: 95.27705008 | F189: 90.88366937 | G189: 84.58800811 | H189: 91.16660121 | I189: 91.90260697 | J189: 87.97018878 | K189: 97.87436958 | L189: 88.93377817 | M189: 93.0776658 | N189: 95.98903191 | O189: 104.4346443 | P189: 86.864326 | Q189: 108.9923343 | R189: 102.8975367 | S189: 106.0356637 | T189: 93.67580521
A190: 189 | B190: 3 | C190: 390 | D190: Motor Vehicle and Motor Vehicle Parts Retailing, nfd | E190: 0.110179904 | F190: 0.1059009682 | G190: 0.1004488704 | H190: 0.095152307 | I190: 0.4672434065 | J190: 0.0888032459 | K190: 0.088509015 | L190: 0.0889569665 | M190: 0.2929522706 | N190: 0.0895567523 | O190: 0.0888647122 | P190: 0.0865762623 | Q190: 0.0837557118 | R190: 0.3665879262 | S190: 0.0785139439 | T190: 0.0774256565
A191: 190 | B191: 3 | C191: 391 | D191: Motor Vehicle Retailing | E191: 74.069286 | F191: 67.66325093 | G191: 64.01723062 | H191: 68.11033024 | I191: 69.58834765 | J191: 60.18402005 | K191: 70.08156228 | L191: 60.00182364 | M191: 66.71281204 | N191: 76.35167218 | O191: 76.51661451 | P191: 64.32550993 | Q191: 75.59193906 | R191: 73.96339944 | S191: 77.78540298 | T191: 65.08438015
A192: 191 | B192: 3 | C192: 392 | D192: Motor Vehicle Parts and Tyre Retailing | E192: 21.22270205 | F192: 23.48009528 | G192: 20.83302263 | H192: 23.25470148 | I192: 21.55560852 | J192: 27.33975931 | K192: 27.42410388 | L192: 29.03395399 | M192: 26.98748726 | N192: 21.20529704 | O192: 30.39494837 | P192: 24.65790474 | Q192: 36.58706813 | R192: 31.28626601 | S192: 30.91825622 | T192: 30.69037659
A193: 192 | B193: 2 | C193: 40 | D193: Fuel Retailing | E193: 40.8799532 | F193: 43.37672388 | G193: 37.84367622 | H193: 37.40463901 | I193: 34.57287709 | J193: 29.99478795 | K193: 35.38771372 | L193: 35.77961749 | M193: 33.89553943 | N193: 36.77300639 | O193: 36.50561562 | P193: 33.4776198 | Q193: 36.3211009 | R193: 38.71220592 | S193: 43.62630747 | T193: 30.82667406
A194: 193 | B194: 3 | C194: 400 | D194: Fuel Retailing | E194: 40.8799532 | F194: 43.37672388 | G194: 37.84367622 | H194: 37.40463901 | I194: 34.57287709 | J194: 29.99478795 | K194: 35.38771372 | L194: 35.77961749 | M194: 33.89553943 | N194: 36.77300639 | O194: 36.50561562 | P194: 33.4776198 | Q194: 36.3211009 | R194: 38.71220592 | S194: 43.62630747 | T194: 30.82667406
A195: 194 | B195: 2 | C195: 41 | D195: Food Retailing | E195: 344.0857773 | F195: 351.6548142 | G195: 347.36933 | H195: 371.9572698 | I195: 405.3731793 | J195: 373.0764799 | K195: 381.9531237 | L195: 376.1961186 | M195: 390.6606995 | N195: 386.6070854 | O195: 370.4404831 | P195: 404.6343945 | Q195: 399.291519 | R195: 406.3212919 | S195: 409.1088765 | T195: 386.8361686
A196: 195 | B196: 3 | C196: 410 | D196: Food Retailing, nfd | E196: 5.536002471 | F196: 2.541096862 | G196: 3.103443841 | H196: 1.753963318 | I196: 2.697046432 | J196: 4.433683743 | K196: 2.967751175 | L196: 4.307435302 | M196: 7.940266403 | N196: 6.734154122 | O196: 9.885397703 | P196: 10.2140145 | Q196: 8.571528834 | R196: 1.578734803 | S196: 2.708924616 | T196: 7.073432728
A197: 196 | B197: 3 | C197: 411 | D197: Supermarket and Grocery Stores | E197: 249.7167157 | F197: 258.6733285 | G197: 261.4776262 | H197: 273.446343 | I197: 293.1214142 | J197: 265.5665625 | K197: 261.6446168 | L197: 278.7033739 | M197: 280.9679236 | N197: 280.3511896 | O197: 264.2140651 | P197: 297.2908366 | Q197: 295.4795195 | R197: 310.8776796 | S197: 302.0232955 | T197: 301.3188389
A198: 197 | B198: 3 | C198: 412 | D198: Specialised Food Retailing | E198: 89.91036503 | F198: 90.81470743 | G198: 82.92546986 | H198: 96.62498926 | I198: 108.9992342 | J198: 102.1871632 | K198: 116.5634518 | L198: 92.74067937 | M198: 101.6329617 | N198: 99.70039196 | O198: 96.94790716 | P198: 98.74827574 | Q198: 97.56410175 | R198: 95.97654444 | S198: 106.7841931 | T198: 82.26743446
A199: 198 | B199: 2 | C199: 42 | D199: Other Store-Based Retailing | E199: 657.8361551 | F199: 631.2461619 | G199: 659.3972414 | H199: 679.7538301 | I199: 631.113634 | J199: 639.3515006 | K199: 645.188517 | L199: 637.2409999 | M199: 630.0245499 | N199: 654.4051947 | O199: 626.2194106 | P199: 661.5445406 | Q199: 667.0026775 | R199: 693.5548625 | S199: 704.9581158 | T199: 641.0559126
A200: 199 | B200: 3 | C200: 420 | D200: Other Store-Based Retailing, nfd | E200: 1.115079235 | F200: 1.524751599 | G200: 1.516768642 | H200: 0.8326547511 | I200: 0.9368139415 | J200: 1.008802623 | K200: 2.096725714 | L200: 0.4542565836 | M200: 0.8979520547 | N200: 0.9793775535 | O200: 0.1996606625 | P200: 1.955141089 | Q200: 7.688337385 | R200: 8.127032962 | S200: 6.257658867 | T200: 5.634437585
... 218 more rows

Sheet Projections IN
E1: Dept Employment Projections 2019 | I1: NOTE: Do not change the format of these headers
A2: Level | B2: ANZSIC 06 Code | C2: Industry | D2: Employment level - May 2019 ('000) | E2: Projected five year employment growth to May 2024 | G2: Projected employment level - May 2024 ('000)
E3: ('000) | F3: (%)
A4: 1 | B4: A | C4: Agriculture, Forestry and Fishing | D4: 332.9490651 | E4: -3.830766663 | F4: -1.150556366 | G4: 329.1182984
A5: 2 | B5: 01 | C5: Agriculture | D5: 285.6361657 | E5: -3.991060099 | F5: -1.397253071 | G5: 281.6451057
A6: 3 | B6: 010 | C6: Agriculture, nfd | D6: 31.64261082 | E6: -2.719524372 | F6: -8.594500585 | G6: 28.92308645
A7: 3 | B7: 011 | C7: Nursery and Floriculture Production | D7: 11.89806571 | E7: -0.04357084165 | F7: -0.3662010509 | G7: 11.85449486
A8: 3 | B8: 012 | C8: Mushroom and Vegetable Growing | D8: 20.80311676 | E8: 1.004765508 | F8: 4.829879673 | G8: 21.80788227
A9: 3 | B9: 013 | C9: Fruit and Tree Nut Growing | D9: 29.11449857 | E9: -0.4380827714 | F9: -1.504689392 | G9: 28.67641579
A10: 3 | B10: 014 | C10: Sheep, Beef Cattle and Grain Farming | D10: 138.133538 | E10: -1.542530742 | F10: -1.116695311 | G10: 136.5910073
A11: 3 | B11: 015 | C11: Other Crop Growing | D11: 5.71291332 | E11: -0.1504949743 | F11: -2.634294727 | G11: 5.562418345
A12: 3 | B12: 016 | C12: Dairy Cattle Farming | D12: 23.2293206 | E12: -0.07497109073 | F12: -0.322743364 | G12: 23.15434951
A13: 3 | B13: 017 | C13: Poultry Farming | D13: 11.00768864 | E13: -0.03918771683 | F13: -0.3560031367 | G13: 10.96850092
A14: 3 | B14: 018 | C14: Deer Farming | D14: 0.2241788799 | E14: -0.005171015251 | F14: -2.30664693 | G14: 0.2190078646
A15: 3 | B15: 019 | C15: Other Livestock Farming | D15: 13.41265204 | E15: 0.01770791734 | F15: 0.1320239822 | G15: 13.43035996
A16: 2 | B16: 02 | C16: Aquaculture | D16: 5.337887082 | E16: -0.1532817414 | F16: -2.871580816 | G16: 5.184605341
A17: 3 | B17: 020 | C17: Aquaculture | D17: 5.337887082 | E17: -0.1532817414 | F17: -2.871580816 | G17: 5.184605341
A18: 2 | B18: 03 | C18: Forestry and Logging | D18: 5.211056433 | E18: 0.09094196294 | F18: 1.74517325 | G18: 5.301998396
A19: 3 | B19: 030 | C19: Forestry and Logging | D19: 5.211056433 | E19: 0.09094196294 | F19: 1.74517325 | G19: 5.301998396
A20: 2 | B20: 04 | C20: Fishing, Hunting and Trapping | D20: 6.898477093 | E20: 0.01437329927 | F20: 0.2083546713 | G20: 6.912850392
A21: 3 | B21: 040 | C21: Fishing, Hunting and Trapping, nfd | D21: 0.225155405 | E21: -0.01350077099 | F21: -5.996201155 | G21: 0.211654634
A22: 3 | B22: 041 | C22: Fishing | D22: 6.010266158 | E22: 0.03461406846 | F22: 0.575915734 | G22: 6.044880226
A23: 3 | B23: 042 | C23: Hunting and Trapping | D23: 0.381182852 | E23: -0.00673999819 | F23: -1.7681798 | G23: 0.3744428538
A24: 2 | B24: 05 | C24: Agriculture, Forestry and Fishing Support Services | D24: 30.26612913 | E24: 0.2082599157 | F24: 0.6880956427 | G24: 30.47438904
A25: 3 | B25: 050 | C25: Agriculture, Forestry and Fishing Support Services, nfd | D25: 0.0795001317 | E25: 0 | F25: 0 | G25: 0.0795001317
A26: 3 | B26: 051 | C26: Forestry Support Services | D26: 4.373662477 | E26: 0.1102577333 | F26: 2.520947464 | G26: 4.483920211
A27: 3 | B27: 052 | C27: Agriculture and Fishing Support Services | D27: 25.79993386 | E27: 0.09800218245 | F27: 0.3798543941 | G27: 25.89793605
A28: 2 | B28: A0 | C28: Agriculture, Forestry and Fishing, nfd | D28: 0.3021911478 | E28: 0 | F28: 0 | G28: 0.3021911478
A29: 3 | B29: A00 | C29: Agriculture, Forestry and Fishing, nfd | D29: 0.3021911478 | E29: 0 | F29: 0 | G29: 0.3021911478
A30: 1 | B30: B | C30: Mining | D30: 247.3889219 | E30: 15.41303236 | F30: 6.230283974 | G30: 262.8019543
A31: 2 | B31: 06 | C31: Coal Mining | D31: 55.23540812 | E31: 3.062694655 | F31: 5.54480316 | G31: 58.29810277
A32: 3 | B32: 060 | C32: Coal Mining | D32: 55.23540812 | E32: 3.062694655 | F32: 5.54480316 | G32: 58.29810277
A33: 2 | B33: 07 | C33: Oil and Gas Extraction | D33: 24.72291832 | E33: 1.989968004 | F33: 8.049082145 | G33: 26.71288632
A34: 3 | B34: 070 | C34: Oil and Gas Extraction | D34: 24.72291832 | E34: 1.989968004 | F34: 8.049082145 | G34: 26.71288632
A35: 2 | B35: 08 | C35: Metal Ore Mining | D35: 103.9552152 | E35: 10.0979355 | F35: 9.713736322 | G35: 114.0531507
A36: 3 | B36: 080 | C36: Metal Ore Mining | D36: 103.9552152 | E36: 10.0979355 | F36: 9.713736322 | G36: 114.0531507
A37: 2 | B37: 09 | C37: Non-Metallic Mineral Mining and Quarrying | D37: 16.31938373 | E37: -0.02129685527 | F37: -0.1305003646 | G37: 16.29808688
A38: 3 | B38: 090 | C38: Non-Metallic Mineral Mining and Quarrying, nfd | D38: 4.37873841 | E38: -0.1491964721 | F38: -3.407293565 | G38: 4.229541938
A39: 3 | B39: 091 | C39: Construction Material Mining | D39: 5.275657143 | E39: 0.1625779063 | F39: 3.081661713 | G39: 5.43823505
A40: 3 | B40: 099 | C40: Other Non-Metallic Mineral Mining and Quarrying | D40: 6.692904288 | E40: -0.03467828947 | F40: -0.5181351469 | G40: 6.658225999
A41: 2 | B41: 10 | C41: Exploration and Other Mining Support Services | D41: 40.20766176 | E41: 0.2837310534 | F41: 0.7056641472 | G41: 40.49139281
A42: 3 | B42: 100 | C42: Exploration and Other Mining Support Services, nfd | D42: 1.181092558 | E42: -0.05079309867 | F42: -4.300518053 | G42: 1.130299459
A43: 3 | B43: 101 | C43: Exploration | D43: 15.38389296 | E43: 0.2096438952 | F43: 1.36274931 | G43: 15.59353686
A44: 3 | B44: 109 | C44: Other Mining Support Services | D44: 23.17404826 | E44: 0.1248802569 | F44: 0.5388797654 | G44: 23.29892851
A45: 2 | B45: B0 | C45: Mining, nfd | D45: 2.234029428 | E45: 0 | F45: 0 | G45: 2.234029428
A46: 3 | B46: B00 | C46: Mining, nfd | D46: 2.234029428 | E46: 0 | F46: 0 | G46: 2.234029428
A47: 1 | B47: C | C47: Manufacturing | D47: 848.6956615 | E47: -3.40794969 | F47: -0.4015514448 | G47: 845.2877118
A48: 2 | B48: 11 | C48: Food Product Manufacturing | D48: 205.7997427 | E48: 1.687207627 | F48: 0.8198298042 | G48: 207.4869503
A49: 3 | B49: 110 | C49: Food Product Manufacturing, nfd | D49: 14.07461189 | E49: -2.956740269 | F49: -21.00761493 | G49: 11.11787162
A50: 3 | B50: 111 | C50: Meat and Meat Product Manufacturing | D50: 60.44855931 | E50: 3.94217701 | F50: 6.521540058 | G50: 64.39073632
A51: 3 | B51: 112 | C51: Seafood Processing | D51: 2.07478704 | E51: 0.007072498611 | F51: 0.3408782913 | G51: 2.081859539
A52: 3 | B52: 113 | C52: Dairy Product Manufacturing | D52: 21.75170535 | E52: 0.06351709399 | F52: 0.2920097204 | G52: 21.81522244
A53: 3 | B53: 114 | C53: Fruit and Vegetable Processing | D53: 7.381730418 | E53: 0.2881387719 | F53: 3.903404156 | G53: 7.66986919
A54: 3 | B54: 115 | C54: Oil and Fat Manufacturing | D54: 0.9029265199 | E54: 0 | F54: 0 | G54: 0.9029265199
A55: 3 | B55: 116 | C55: Grain Mill and Cereal Product Manufacturing | D55: 4.095539337 | E55: -0.4779021678 | F55: -11.66884575 | G55: 3.617637169
A56: 3 | B56: 117 | C56: Bakery Product Manufacturing | D56: 58.11446392 | E56: 0.2439778243 | F56: 0.419822894 | G56: 58.35844175
A57: 3 | B57: 118 | C57: Sugar and Confectionery Manufacturing | D57: 10.77445221 | E57: -0.1201719753 | F57: -1.115341856 | G57: 10.65428023
A58: 3 | B58: 119 | C58: Other Food Product Manufacturing | D58: 27.31840214 | E58: 0.6971388398 | F58: 2.55190196 | G58: 28.01554098
A59: 2 | B59: 12 | C59: Beverage and Tobacco Product Manufacturing | D59: 30.23138428 | E59: 1.86658034 | F59: 6.174313165 | G59: 32.09796462
A60: 3 | B60: 120 | C60: Beverage and Tobacco Product Manufacturing, nfd | D60: 0.1277379375 | E60: -0.0003832836955 | F60: -0.3000547081 | G60: 0.1273546538
A61: 3 | B61: 121 | C61: Beverage Manufacturing | D61: 30.00010193 | E61: 1.875486977 | F61: 6.251602014 | G61: 31.87558891
A62: 3 | B62: 122 | C62: Cigarette and Tobacco Product Manufacturing | D62: 0.215713477 | E62: -0.008523353253 | F62: -3.951238175 | G62: 0.2071901237
A63: 2 | B63: 13 | C63: Textile, Leather, Clothing and Footwear Manufacturing | D63: 31.56768384 | E63: -4.526180532 | F63: -14.33801908 | G63: 27.04150331
A64: 3 | B64: 130 | C64: Textile, Leather, Clothing and Footwear Manufacturing, nfd | D64: 0.0885611685 | E64: -0.01004474175 | F64: -11.34215133 | G64: 0.07851642675
A65: 3 | B65: 131 | C65: Textile Manufacturing | D65: 1.183620568 | E65: -0.2995526033 | F65: -25.30816137 | G65: 0.8840679643
A66: 3 | B66: 132 | C66: Leather Tanning, Fur Dressing and Leather Product Manufacturing | D66: 1.702832268 | E66: -0.1459764218 | F66: -8.572566102 | G66: 1.556855846
A67: 3 | B67: 133 | C67: Textile Product Manufacturing | D67: 11.50136417 | E67: -0.7162016914 | F67: -6.227102113 | G67: 10.78516248
A68: 3 | B68: 134 | C68: Knitted Product Manufacturing | D68: 0.2826668927 | E68: 0 | F68: 0 | G68: 0.2826668927
A69: 3 | B69: 135 | C69: Clothing and Footwear Manufacturing | D69: 17.11472821 | E69: -3.354405074 | F69: -19.59952289 | G69: 13.76032314
A70: 2 | B70: 14 | C70: Wood Product Manufacturing | D70: 50.41761117 | E70: 0.7987595018 | F70: 1.584286687 | G70: 51.21637068
A71: 3 | B71: 140 | C71: Wood Product Manufacturing, nfd | D71: 0.1 | E71: 0 | F71: 0 | G71: 0.1
A72: 3 | B72: 141 | C72: Log Sawmilling and Timber Dressing | D72: 9.188408867 | E72: -0.780564515 | F72: -8.495099928 | G72: 8.407844352
A73: 3 | B73: 149 | C73: Other Wood Product Manufacturing | D73: 40.20566025 | E73: 1.578917422 | F73: 3.927102333 | G73: 41.78457767
A74: 2 | B74: 15 | C74: Pulp, Paper and Converted Paper Product Manufacturing | D74: 14.25367044 | E74: -0.4790855038 | F74: -3.361137792 | G74: 13.77458494
A75: 3 | B75: 150 | C75: Pulp, Paper and Converted Paper Product Manufacturing, nfd | D75: 2.738850829 | E75: -0.5345136999 | F75: -19.51598438 | G75: 2.204337129
A76: 3 | B76: 151 | C76: Pulp, Paper and Paperboard Manufacturing | D76: 3.611657888 | E76: 0.02850306516 | F76: 0.7891961545 | G76: 3.640160953
A77: 3 | B77: 152 | C77: Converted Paper Product Manufacturing | D77: 8.108178408 | E77: 0.02692513092 | F77: 0.3320737355 | G77: 8.135103539
A78: 2 | B78: 16 | C78: Printing (including the Reproduction of Recorded Media) | D78: 34.15074068 | E78: -5.344364625 | F78: -15.64933738 | G78: 28.80637605
A79: 3 | B79: 160 | C79: Printing (including the Reproduction of Recorded Media), nfd | D79: 0.1567117246 | E79: -0.02599985546 | F79: -16.59088082 | G79: 0.1307118691
A80: 3 | B80: 161 | C80: Printing and Printing Support Services | D80: 33.59978141 | E80: -5.274232632 | F80: -15.69722305 | G80: 28.32554877
A81: 3 | B81: 162 | C81: Reproduction of Recorded Media | D81: 0.3069639452 | E81: -0.04413213716 | F81: -14.37697744 | G81: 0.262831808
A82: 2 | B82: 17 | C82: Petroleum and Coal Product Manufacturing | D82: 7.04561703 | E82: -0.100268491 | F82: -1.423132858 | G82: 6.945348539
A83: 3 | B83: 170 | C83: Petroleum and Coal Product Manufacturing | D83: 7.04561703 | E83: -0.100268491 | F83: -1.423132858 | G83: 6.945348539
A84: 2 | B84: 18 | C84: Basic Chemical and Chemical Product Manufacturing | D84: 47.27057778 | E84: 0.6776355447 | F84: 1.433524988 | G84: 47.94821333
A85: 3 | B85: 180 | C85: Basic Chemical and Chemical Product Manufacturing, nfd | D85: 1.837072131 | E85: -0.1035095407 | F85: -5.634484298 | G85: 1.73356259
A86: 3 | B86: 181 | C86: Basic Chemical Manufacturing | D86: 4.43767422 | E86: -0.4625332452 | F86: -10.42287519 | G86: 3.975140975
A87: 3 | B87: 182 | C87: Basic Polymer Manufacturing | D87: 1.917149373 | E87: -0.0368757126 | F87: -1.923465804 | G87: 1.88027366
A88: 3 | B88: 183 | C88: Fertiliser and Pesticide Manufacturing | D88: 2.602122194 | E88: -0.4009496303 | F88: -15.40856272 | G88: 2.201172564
A89: 3 | B89: 184 | C89: Pharmaceutical and Medicinal Product Manufacturing | D89: 22.99758016 | E89: 2.595721178 | F89: 11.28693175 | G89: 25.59330134
A90: 3 | B90: 185 | C90: Cleaning Compound and Toiletry Preparation Manufacturing | D90: 10.04038075 | E90: -0.9189177546 | F90: -9.152220192 | G90: 9.121462997
A91: 3 | B91: 189 | C91: Other Basic Chemical Product Manufacturing | D91: 3.149186413 | E91: 0.004700250425 | F91: 0.1492528485 | G91: 3.153886663
A92: 2 | B92: 19 | C92: Polymer Product and Rubber Product Manufacturing | D92: 36.73903582 | E92: -0.2307775155 | F92: -0.6281534349 | G92: 36.50825831
A93: 3 | B93: 190 | C93: Polymer Product and Rubber Product Manufacturing, nfd | D93: 0.8111291578 | E93: 0.02482183117 | F93: 3.060157675 | G93: 0.835950989
A94: 3 | B94: 191 | C94: Polymer Product Manufacturing | D94: 32.98677081 | E94: -0.4247387526 | F94: -1.287603309 | G94: 32.56203205
A95: 3 | B95: 192 | C95: Natural Rubber Product Manufacturing | D95: 3.205510446 | E95: 0.1691394059 | F95: 5.276520193 | G95: 3.374649852
A96: 2 | B96: 20 | C96: Non-Metallic Mineral Product Manufacturing | D96: 39.76417879 | E96: -1.042111535 | F96: -2.620729427 | G96: 38.72206725
A97: 3 | B97: 200 | C97: Non-Metallic Mineral Product Manufacturing, nfd | D97: 1.746090243 | E97: -0.06466918345 | F97: -3.703656425 | G97: 1.681421059
A98: 3 | B98: 201 | C98: Glass and Glass Product Manufacturing | D98: 7.598673758 | E98: -0.03501163836 | F98: -0.4607598573 | G98: 7.56366212
A99: 3 | B99: 202 | C99: Ceramic Product Manufacturing | D99: 2.09987932 | E99: -0.381927808 | F99: -18.18808369 | G99: 1.717951512
A100: 3 | B100: 203 | C100: Cement, Lime, Plaster and Concrete Product Manufacturing | D100: 12.91149041 | E100: -0.4734754369 | F100: -3.667085843 | G100: 12.43801497
A101: 3 | B101: 209 | C101: Other Non-Metallic Mineral Product Manufacturing | D101: 14.28241921 | E101: -0.08702746815 | F101: -0.6093328227 | G101: 14.19539174
A102: 2 | B102: 21 | C102: Primary Metal and Metal Product Manufacturing | D102: 69.57796314 | E102: 0.7657252626 | F102: 1.100528426 | G102: 70.3436884
A103: 3 | B103: 210 | C103: Primary Metal and Metal Product Manufacturing, nfd | D103: 2.306100904 | E103: -0.005286736192 | F103: -0.2292499944 | G103: 2.300814168
A104: 3 | B104: 211 | C104: Basic Ferrous Metal Manufacturing | D104: 32.03569486 | E104: 1.189931895 | F104: 3.714393898 | G104: 33.22562676
A105: 3 | B105: 212 | C105: Basic Ferrous Metal Product Manufacturing | D105: 6.093988774 | E105: 0 | F105: 0 | G105: 6.093988774
A106: 3 | B106: 213 | C106: Basic Non-Ferrous Metal Manufacturing | D106: 19.11308205 | E106: -0.6349508934 | F106: -3.322074858 | G106: 18.47813116
A107: 3 | B107: 214 | C107: Basic Non-Ferrous Metal Product Manufacturing | D107: 9.279754863 | E107: 0.2160309969 | F107: 2.327981721 | G107: 9.49578586
A108: 2 | B108: 22 | C108: Fabricated Metal Product Manufacturing | D108: 66.50374184 | E108: 1.014556209 | F108: 1.525562594 | G108: 67.51829805
A109: 3 | B109: 220 | C109: Fabricated Metal Product Manufacturing, nfd | D109: 1.681066111 | E109: -0.07126882488 | F109: -4.239501612 | G109: 1.609797286
A110: 3 | B110: 221 | C110: Iron and Steel Forging | D110: 0.5706652716 | E110: 0.02553921048 | F110: 4.47533988 | G110: 0.5962044821
A111: 3 | B111: 222 | C111: Structural Metal Product Manufacturing | D111: 35.01900783 | E111: 3.167514091 | F111: 9.045128023 | G111: 38.18652192
A112: 3 | B112: 223 | C112: Metal Container Manufacturing | D112: 7.570432524 | E112: -0.6015544669 | F112: -7.946104334 | G112: 6.968878057
A113: 3 | B113: 224 | C113: Sheet Metal Product Manufacturing (except Metal Structural and Container Products) | D113: 1.905028327 | E113: -0.04032802474 | F113: -2.116925201 | G113: 1.864700302
A114: 3 | B114: 229 | C114: Other Fabricated Metal Product Manufacturing | D114: 22.15414456 | E114: -1.465345775 | F114: -6.614318921 | G114: 20.68879878
A115: 2 | B115: 23 | C115: Transport Equipment Manufacturing | D115: 66.49140352 | E115: -0.04639551533 | F115: -0.06977671229 | G115: 66.44500801
A116: 3 | B116: 230 | C116: Transport Equipment Manufacturing, nfd | D116: 0.2543144228 | E116: -0.04411263275 | F116: -17.34570626 | G116: 0.21020179
A117: 3 | B117: 231 | C117: Motor Vehicle and Motor Vehicle Part Manufacturing | D117: 35.69812751 | E117: 0.2704604193 | F117: 0.7576319492 | G117: 35.96858793
A118: 3 | B118: 239 | C118: Other Transport Equipment Manufacturing | D118: 29.75939123 | E118: -0.2727433019 | F118: -0.9164948964 | G118: 29.48664793
A119: 2 | B119: 24 | C119: Machinery and Equipment Manufacturing | D119: 114.8772619 | E119: 0.4035196703 | F119: 0.351261567 | G119: 115.2807816
A120: 3 | B120: 240 | C120: Machinery and Equipment Manufacturing, nfd | D120: 8.400032126 | E120: -0.4371534026 | F120: -5.20418727 | G120: 7.962878723
A121: 3 | B121: 241 | C121: Professional and Scientific Equipment Manufacturing | D121: 21.77595648 | E121: 0.9469686972 | F121: 4.348689335 | G121: 22.72292518
A122: 3 | B122: 242 | C122: Computer and Electronic Equipment Manufacturing | D122: 14.1523625 | E122: -0.2404525801 | F122: -1.699027848 | G122: 13.91190992
A123: 3 | B123: 243 | C123: Electrical Equipment Manufacturing | D123: 15.97529989 | E123: -0.5781442065 | F123: -3.618988128 | G123: 15.39715568
A124: 3 | B124: 244 | C124: Domestic Appliance Manufacturing | D124: 9.098690376 | E124: 0.8204745374 | F124: 9.017501458 | G124: 9.919164914
A125: 3 | B125: 245 | C125: Pump, Compressor, Heating and Ventilation Equipment Manufacturing | D125: 4.261998862 | E125: -0.1688475141 | F125: -3.961697776 | G125: 4.093151348
A126: 3 | B126: 246 | C126: Specialised Machinery and Equipment Manufacturing | D126: 21.03442848 | E126: 0.1040508097 | F126: 0.4946690604 | G126: 21.13847929
A127: 3 | B127: 249 | C127: Other Machinery and Equipment Manufacturing | D127: 21.9502838 | E127: -0.04337667068 | F127: -0.1976132568 | G127: 21.90690712
A128: 2 | B128: 25 | C128: Furniture and Other Manufacturing | D128: 67.45066433 | E128: 1.465958561 | F128: 2.173378981 | G128: 68.91662289
A129: 3 | B129: 250 | C129: Furniture and Other Manufacturing, nfd | D129: 1.197341036 | E129: 0 | F129: 0 | G129: 1.197341036
A130: 3 | B130: 251 | C130: Furniture Manufacturing | D130: 43.58021528 | E130: -0.07821502949 | F130: -0.1794737107 | G130: 43.50200025
A131: 3 | B131: 259 | C131: Other Manufacturing | D131: 22.21457825 | E131: 1.54417359 | F131: 6.951172213 | G131: 23.75875184
A132: 2 | B132: C0 | C132: Manufacturing, nfd | D132: 3.536384189 | E132: -0.3187086894 | F132: -9.0122756 | G132: 3.217675499
A133: 3 | B133: C00 | C133: Manufacturing, nfd | D133: 3.536384189 | E133: -0.3187086894 | F133: -9.0122756 | G133: 3.217675499
A134: 1 | B134: D | C134: Electricity, Gas, Water and Waste Services | D134: 154.5402757 | E134: 6.804200598 | F134: 4.402865575 | G134: 161.3444763
A135: 2 | B135: 26 | C135: Electricity Supply | D135: 66.20710116 | E135: 0.8326902959 | F135: 1.257705414 | G135: 67.03979146
A136: 3 | B136: 260 | C136: Electricity Supply, nfd | D136: 21.12027824 | E136: 0 | F136: 0 | G136: 21.12027824
A137: 3 | B137: 261 | C137: Electricity Generation | D137: 14.29786885 | E137: 0.1483660252 | F137: 1.037679299 | G137: 14.44623488
A138: 3 | B138: 262 | C138: Electricity Transmission | D138: 2.522703062 | E138: -0.07145356326 | F138: -2.832420681 | G138: 2.451249499
A139: 3 | B139: 263 | C139: Electricity Distribution | D139: 19.6824057 | E139: -0.1699585115 | F139: -0.8635047671 | G139: 19.51244719
A140: 3 | B140: 264 | C140: On Selling Electricity and Electricity Market Operation | D140: 10.46998839 | E140: 0.9257363454 | F140: 8.841808708 | G140: 11.39572474
A141: 2 | B141: 27 | C141: Gas Supply | D141: 9.203408893 | E141: -0.6453668208 | F141: -7.012258482 | G141: 8.558042073
A142: 3 | B142: 270 | C142: Gas Supply | D142: 9.203408893 | E142: -0.6453668208 | F142: -7.012258482 | G142: 8.558042073
A143: 2 | B143: 28 | C143: Water Supply, Sewerage and Drainage Services | D143: 35.98153984 | E143: 2.260098841 | F143: 6.281273263 | G143: 38.24163868
A144: 3 | B144: 281 | C144: Water Supply, Sewerage and Drainage Services | D144: 35.98153984 | E144: 2.260098841 | F144: 6.281273263 | G144: 38.24163868
A145: 2 | B145: 29 | C145: Waste Collection, Treatment and Disposal Services | D145: 40.90666585 | E145: 4.356778281 | F145: 10.65053382 | G145: 45.26344413
A146: 3 | B146: 290 | C146: Waste Collection, Treatment and Disposal Services, nfd | D146: 4.239588816 | E146: 0.308312811 | F146: 7.272233803 | G146: 4.547901627
A147: 3 | B147: 291 | C147: Waste Collection Services | D147: 21.72940541 | E147: 2.252477593 | F147: 10.36603418 | G147: 23.981883
A148: 3 | B148: 292 | C148: Waste Treatment, Disposal and Remediation Services | D148: 14.57471528 | E148: 1.795987878 | F148: 12.32262754 | G148: 16.37070315
A149: 2 | B149: D0 | C149: Electricity, Gas, Water and Waste Services, nfd | D149: 0.5446323726 | E149: 0 | F149: 0 | G149: 0.5446323726
A150: 3 | B150: D00 | C150: Electricity, Gas, Water and Waste Services, nfd | D150: 0.5446323726 | E150: 0 | F150: 0 | G150: 0.5446323726
A151: 1 | B151: E | C151: Construction | D151: 1169.18748 | E151: 113.6620758 | F151: 9.721458511 | G151: 1282.849556
A152: 2 | B152: 30 | C152: Building Construction | D152: 322.8917148 | E152: 30.47247593 | F152: 9.437366936 | G152: 353.3641907
A153: 3 | B153: 300 | C153: Building Construction, nfd | D153: 112.5400133 | E153: 10.5458082 | F153: 9.370718814 | G153: 123.0858215
A154: 3 | B154: 301 | C154: Residential Building Construction | D154: 139.5326511 | E154: 11.40646481 | F154: 8.174763917 | G154: 150.9391159
A155: 3 | B155: 302 | C155: Non-Residential Building Construction | D155: 68.39641942 | E155: 8.520202915 | F155: 12.45708911 | G155: 76.91662234
A156: 2 | B156: 31 | C156: Heavy and Civil Engineering Construction | D156: 105.1940389 | E156: 15.11568393 | F156: 14.36933508 | G156: 120.3097229
A157: 3 | B157: 310 | C157: Heavy and Civil Engineering Construction | D157: 105.1940389 | E157: 15.11568393 | F157: 14.36933508 | G157: 120.3097229
A158: 2 | B158: 32 | C158: Construction Services | D158: 733.8537112 | E158: 67.98384327 | F158: 9.263950325 | G158: 801.8375545
A159: 3 | B159: 320 | C159: Construction Services, nfd | D159: 4.796399685 | E159: 0.4521412157 | F159: 9.426679288 | G159: 5.248540901
A160: 3 | B160: 321 | C160: Land Development and Site Preparation Services | D160: 57.91423013 | E160: 6.008123226 | F160: 10.37417438 | G160: 63.92235335
A161: 3 | B161: 322 | C161: Building Structure Services | D161: 98.97946827 | E161: 10.79193131 | F161: 10.90320195 | G161: 109.7713996
A162: 3 | B162: 323 | C162: Building Installation Services | D162: 252.4116258 | E162: 21.55596762 | F162: 8.540005852 | G162: 273.9675935
A163: 3 | B163: 324 | C163: Building Completion Services | D163: 210.1030624 | E163: 15.40239003 | F163: 7.330873644 | G163: 225.5054524
A164: 3 | B164: 329 | C164: Other Construction Services | D164: 106.738063 | E164: 13.77328987 | F164: 12.9038222 | G164: 120.5113529
A165: 2 | B165: E0 | C165: Construction, nfd | D165: 0.9559262812 | E165: 0.09007265121 | F165: 9.42255203 | G165: 1.045998932
A166: 3 | B166: E00 | C166: Construction, nfd | D166: 0.9559262812 | E166: 0.09007265121 | F166: 9.42255203 | G166: 1.045998932
A167: 1 | B167: F | C167: Wholesale Trade | D167: 401.7256798 | E167: 10.42809278 | F167: 2.59582429 | G167: 412.1537726
A168: 2 | B168: 33 | C168: Basic Material Wholesaling | D168: 97.60760277 | E168: 1.142722478 | F168: 1.170731015 | G168: 98.75032525
A169: 3 | B169: 330 | C169: Basic Material Wholesaling, nfd | D169: 0.3631023189 | E169: 0 | F169: 0 | G169: 0.3631023189
A170: 3 | B170: 331 | C170: Agricultural Product Wholesaling | D170: 20.67971002 | E170: 0.6161132315 | F170: 2.979312721 | G170: 21.29582326
A171: 3 | B171: 332 | C171: Mineral, Metal and Chemical Wholesaling | D171: 33.26338744 | E171: 0.7690433318 | F171: 2.311981404 | G171: 34.03243077
A172: 3 | B172: 333 | C172: Timber and Hardware Goods Wholesaling | D172: 43.46511133 | E172: -0.242434085 | F172: -0.5577670863 | G172: 43.22267725
A173: 2 | B173: 34 | C173: Machinery and Equipment Wholesaling | D173: 119.4227572 | E173: 5.557903652 | F173: 4.65397365 | G173: 124.9806609
A174: 3 | B174: 340 | C174: Machinery and Equipment Wholesaling, nfd | D174: 1.796711622 | E174: 0.08492417785 | F174: 4.726644879 | G174: 1.8816358
A175: 3 | B175: 341 | C175: Specialised Industrial Machinery and Equipment Wholesaling | D175: 31.5348882 | E175: 2.852694944 | F175: 9.046155248 | G175: 34.38758315
A176: 3 | B176: 349 | C176: Other Machinery and Equipment Wholesaling | D176: 84.21376977 | E176: 2.62028453 | F176: 3.111468038 | G176: 86.8340543
A177: 2 | B177: 35 | C177: Motor Vehicle and Motor Vehicle Parts Wholesaling | D177: 25.65124982 | E177: 0.3552708032 | F177: 1.385003872 | G177: 26.00652062
A178: 3 | B178: 350 | C178: Motor Vehicle and Motor Vehicle Parts Wholesaling | D178: 25.65124982 | E178: 0.3552708032 | F178: 1.385003872 | G178: 26.00652062
A179: 2 | B179: 36 | C179: Grocery, Liquor and Tobacco Product Wholesaling | D179: 72.3459696 | E179: 0.9930573496 | F179: 1.37265055 | G179: 73.33902695
A180: 3 | B180: 360 | C180: Grocery, Liquor and Tobacco Product Wholesaling | D180: 72.3459696 | E180: 0.9930573496 | F180: 1.37265055 | G180: 73.33902695
A181: 2 | B181: 37 | C181: Other Goods Wholesaling | D181: 83.60078062 | E181: 2.326328135 | F181: 2.782663173 | G181: 85.92710875
A182: 3 | B182: 370 | C182: Other Goods Wholesaling, nfd | D182: 4.982334584 | E182: -0.04447799899 | F182: -0.8927140128 | G182: 4.937856585
A183: 3 | B183: 371 | C183: Textile, Clothing and Footwear Wholesaling | D183: 15.49991717 | E183: 0.4005074838 | F183: 2.583933059 | G183: 15.90042465
A184: 3 | B184: 372 | C184: Pharmaceutical and Toiletry Goods Wholesaling | D184: 25.44178446 | E184: 0.7039112685 | F184: 2.766752739 | G184: 26.14569573
A185: 3 | B185: 373 | C185: Furniture, Floor Covering and Other Goods Wholesaling | D185: 38.08822114 | E185: 1.266387381 | F185: 3.324879302 | G185: 39.35460853
A186: 2 | B186: 38 | C186: Commission-Based Wholesaling | D186: 5.958274112 | E186: 0.05281035983 | F186: 0.8863365269 | G186: 6.011084472
A187: 3 | B187: 380 | C187: Commission-Based Wholesaling | D187: 5.958274112 | E187: 0.05281035983 | F187: 0.8863365269 | G187: 6.011084472
A188: 2 | B188: F0 | C188: Wholesale Trade, nfd | D188: 1.303387839 | E188: 0 | F188: 0 | G188: 1.303387839
A189: 3 | B189: F00 | C189: Wholesale Trade, nfd | D189: 1.303387839 | E189: 0 | F189: 0 | G189: 1.303387839
A190: 1 | B190: G | C190: Retail Trade | D190: 1297.869657 | E190: 62.32961558 | F190: 4.802455719 | G190: 1360.199273
A191: 2 | B191: 39 | C191: Motor Vehicle and Motor Vehicle Parts Retailing | D191: 105.9090522 | E191: 5.510193226 | F191: 5.202759456 | G191: 111.4192454
A192: 3 | B192: 390 | C192: Motor Vehicle and Motor Vehicle Parts Retailing, nfd | D192: 0.4148265982 | E192: 0.03298900432 | F192: 7.952480498 | G192: 0.4478156025
A193: 3 | B193: 391 | C193: Motor Vehicle Retailing | D193: 77.03329281 | E193: 4.60808216 | F193: 5.981935851 | G193: 81.64137497
A194: 3 | B194: 392 | C194: Motor Vehicle Parts and Tyre Retailing | D194: 29.90616128 | E194: 0.8691220621 | F194: 2.906163897 | G194: 30.77528335
A195: 2 | B195: 40 | C195: Fuel Retailing | D195: 41.81340471 | E195: 0.1979737258 | F195: 0.4734695183 | G195: 42.01137843
A196: 3 | B196: 400 | C196: Fuel Retailing | D196: 41.81340471 | E196: 0.1979737258 | F196: 0.4734695183 | G196: 42.01137843
A197: 2 | B197: 41 | C197: Food Retailing | D197: 409.3441196 | E197: 16.74520925 | F197: 4.09074137 | G197: 426.0893289
A198: 3 | B198: 410 | C198: Food Retailing, nfd | D198: 3.022443504 | E198: -0.02207759021 | F198: -0.7304550168 | G198: 3.000365914
A199: 3 | B199: 411 | C199: Supermarket and Grocery Stores | D199: 306.3323215 | E199: 13.68408157 | F199: 4.467070763 | G199: 320.016403
A200: 3 | B200: 412 | C200: Specialised Food Retailing | D200: 100.5950272 | E200: 3.083205265 | F200: 3.064967873 | G200: 103.6782324
... 220 more rows
